Workbook

Sheet ReadMe
A1: NCHRP 25-51 Roadside BMP Clogging Risk Assessment Tool
A2: Readme Notes
A3: 1 | B3: Please read the User's Guide before using the Tool.
A4: 2 | B4: Tool inputs are intended to be populated sequentially (i.e., Project Location, Tributary Area, then BMP Design). Inputs on previous tabs can later be modified by skipping backward and forward, however skipping forward as part of the initial tool parameterization will potentially introduce errors.
A5: 3 | B5: The tool is navigated using the tabs at the bottom of the workbook.
A6: 4 | B6: The user is responsible for ensuring that input parameters are reasonable. It is possible to enter inputs that are outside of acceptable ranges. Valid ranges are provided in cell descriptions. Negative numbers are never reasonable for populating the Tool and will not return valid results.
A7: 5 | B7: The user should review all provided descriptions and ensure that default values are applicable to the project site.
A8: 6 | B8: Where dropdown boxes are available for input parameters, values must be selected from the dropdown menu. The Tool cannot accept custom inputs for these fields.
A9: 7 | B9: The Tool requires macros to be enabled. If macros are not enabled, the Tool will not function.
A10: 8 | B10: The Tool is intended to be operated with Excel set to "Auto Calculate" mode; not "Manual Calculate" mode. To change this setting, go to the "Formulas" ribbon and select "Calculation Options".
A11: 9 | B11: Any changes to the structure of this workbook (tab names, inserting or deleting columns or rows, etc.) will render the Tool non-functional. Several precautions were taken to prevent this kind of action, but it is ultimately the user's responsibility to maintain a functional workbook. The user may create new worksheets for the purpose of calculations and notes, but any other structural changes must be avoided.
A12: 10 | B12: The workbook is saved as a Template file (.xltm). Opening the file by double-clicking will create a new macro-enabled workbook (.xlsm) that can be saved by the user without the risk of over-writing the template. If the user would like to edit the template, first open Excel and then navigate to the .xltm file.
A13: 11 | B13: Many cells and sheets in this workbook are protected. To unprotect/protect a sheet, go to "Review" or "File" and click the appropriate selection. The password is "NCHRP". It is the user's responsibility to maintain a functional workbook.

Sheet Project Location
A1: =ReadMe!A1 -> NCHRP 25-51 Roadside BMP Clogging Risk Assessment Tool | O1: Key | X1: Section | Y1: State | AA1: =VLOOKUP(C11,Y2:Z51,2,FALSE) ->  | AB1: Section | AC1: 4
A2: Project Title | C2: Example Run | O2: User Steps | P2: Default data; editing allowed with rationale | X2: 7 | Y2: Alabama | Z2: AL
A3: Project Location | C3: Horton, KS | O3: User Entered Data | P3: Guidance | X3: X | Y3: Alaska | Z3: AK | AB3: Row Labels
A4: Company | C4: ABC Engineering | O4: Reference Data; do not edit cells | P4: Reference Links | X4: 2 | Y4: Arizona | Z4: AZ | AB4: Colorado
X5: 6 | Y5: Arkansas | Z5: AR | AB5: Kansas
A6: Project Location and Climate Selection | X6: 2 | Y6: California | Z6: CA | AB6: New Mexico
X7: 4 | Y7: Colorado | Z7: CO | AB7: Oklahoma
A8: Step 1: Select the Region your Project is Located | O8: Step 2: Select the state your project is located and the rain gage closest to the project | X8: 10 | Y8: Connecticut | Z8: CT | AB8: Texas
X9: 9 | Y9: Delaware | Z9: DE | AB9: Grand Total
O10: States within Selected Region | P10: Rain Gages Available in State | X10: 7 | Y10: Florida | Z10: FL
O11: Kansas | P11: [3] NORTHEAST - HORTON | X11: 7 | Y11: Georgia | Z11: GA
X12: X | Y12: Hawaii | Z12: HI
X13: 1 | Y13: Idaho | Z13: ID
O14: COOP ID | P14: =IF(P11="","Select Rain Gage",VLOOKUP(P11,'Rain Gage Summary'!B2:J348,9,FALSE)) -> 143810 | X14: 5 | Y14: Illinois | Z14: IL
O15: Elevation (ft) | P15: =IF(P11="","Select Rain Gage",VLOOKUP(P11,'Rain Gage Summary'!B2:J348,5,FALSE)) -> 1030 | X15: 5 | Y15: Indiana | Z15: IN | AB15: # states
O16: Average Annual Precipitation Depth (in) | P16: =IF(P11="","Select Rain Gage",VLOOKUP(P11,'Rain Gage Summary'!B2:J348,8,FALSE)) -> 35.44440587 | X16: 3 | Y16: Iowa | Z16: IA | AB16: =COUNTA(AB4:AB14)-1 -> 5
O17: 85th Percentile, 24-Hour Storm Depth (in) | P17: =IF(P11="","Select Rain Gage",VLOOKUP(P11,'Rain Gage Summary'!B3:J349,6,FALSE)) -> 1.1 | X17: 4 | Y17: Kansas | Z17: KS
X18: 8 | Y18: Kentucky | Z18: KY
O19: Step 3: If available, override the existing data and provide project specific rain data | X19: 7 | Y19: Louisiana | Z19: LA
X20: 10 | Y20: Maine | Z20: ME
O21: Project Location Average Annual Precipitation Depth (in) | P21: 35.44440587 | X21: 8 | Y21: Maryland | Z21: MD
O22: Project Location 85th Percentile, 24-Hour Storm Depth (in) | P22: 1.1 | X22: 10 | Y22: Massachusetts | Z22: MA
O23: Adjust the annual and 85th percentile storm depths to a project specific value. If a new rain gauge is selected, the entries in the cells above will be reset to the default values for the selected rain gage. Precipitation statistics are for load and reference calculations only, they do not imply a BMP size which is entered on the BMP Design Tab. | X23: 5 | Y23: Michigan | Z23: MI
X24: 3 | Y24: Minnesota | Z24: MN
X25: 7 | Y25: Mississippi | Z25: MS
X26: 5 | Y26: Missouri | Z26: MO
X27: 1 | Y27: Montana | Z27: MT
X28: 3 | Y28: Nebraska | Z28: NE
X29: 2 | Y29: Nevada | Z29: NV
X30: 10 | Y30: New Hampshire | Z30: NH
X31: 9 | Y31: New Jersey | Z31: NJ
X32: 4 | Y32: New Mexico | Z32: NM
X33: 9 | Y33: New York | Z33: NY
X34: 6 | Y34: North Carolina | Z34: NC
X35: 3 | Y35: North Dakota | Z35: ND
X36: 8 | Y36: Ohio | Z36: OH
X37: 4 | Y37: Oklahoma | Z37: OK
X38: 1 | Y38: Oregon | Z38: OR
X39: 9 | Y39: Pennsylvania | Z39: PA
X40: 10 | Y40: Rhode Island | Z40: RI
X41: 6 | Y41: South Carolina | Z41: SC
X42: 3 | Y42: South Dakota | Z42: SD
X43: 6 | Y43: Tennessee | Z43: TN
X44: 4 | Y44: Texas | Z44: TX
X45: 2 | Y45: Utah | Z45: UT
X46: 10 | Y46: Vermont | Z46: VT
X47: 8 | Y47: Virginia | Z47: VA
X48: 1 | Y48: Washington | Z48: WA
X49: 8 | Y49: West Virginia | Z49: WV
X50: 5 | Y50: Wisconsin | Z50: WI
X51: 1 | Y51: Wyoming | Z51: WY

Sheet Tributary Area
A1: ='Project Location'!A1 -> NCHRP 25-51 Roadside BMP Clogging Risk Assessment Tool | D1: Key
A2: Project Title | B2: ='Project Location'!C2 -> Example Run | D2: User Steps | E2: Default data; editing allowed with rationale
A3: Project Location | B3: ='Project Location'!C3 -> Horton, KS | D3: User Entered Data | E3: Guidance
A4: Company | B4: ='Project Location'!C4 -> ABC Engineering | D4: Reference Data; do not edit cells | E4: Reference Links
A6: Tributary Area Attributes
A8: Step 1: Provide data describing the roadway sediment concentration | G8: Look Up Tables and Lists
A9: Sediment Concentration Parameter | B9: Value | C9: Guidance | G9: =B10 -> 25K to 50K | H9: =VLOOKUP(G9,G11:H15,2,FALSE) -> 57 | I9: =B20 -> Yes
A10: Average Annual Daily Traffic Volume | B10: 25K to 50K | C10: Enter the average annual daily traffic (AADT) volume, the average number of vehicles that pass a roadway point in 24 hours. This value will be used to determine the default roadway TSS concentration. | G10: AADT | H10: TSS (mg/L) | I10: Additional Run On Area
A11: Default Roadway TSS Concentration (mg/L) | B11: =H9 -> 57 | C11: Default roadway TSS concentrations are median values based on AADT recorded in the Highway Runoff Database (HRDB; Granato & Cazenas, 2009). | G11: Less than 25K | H11: 43 | I11: Yes
A12: User-Provided Roadway TSS Concentration (mg/L) | B12: 50 | C12: Enter a site-specific roadway TSS concentration if available. If no value is entered here, the default roadway TSS concentration will be used. | G12: 25K to 50K | H12: 57 | I12: No
G13: 50K to 100K | H13: 95
A14: Step 2: Provide data describing the roadway tributary area of the project | G14: Greater than 100K | H14: 107
A15: Tributary Area Parameter | B15: Value | C15: Guidance | G15: Unknown (All AADT Combined) | H15: 70
A16: Roadway Drainage Area (ac) | B16: 9.5 | C16: Include roadway areas, medians, shoulders, adjacent structures, runoff conveyances, and other urban areas. Exclude any hydrologically-isolated areas (e.g. isolated pervious or self-sustained areas) and run-on from non-roadway land uses.
A17: Imperviousness of Roadway Drainage Area (%) | B17: 1 | C17: The directly connected impervious percentage should be used. If unknown, 100% should be used to provide a conservative estimate.
A18: Calculated Runoff Coefficient | B18: =IF((B17)<0.55, 0.225*(B17)+0.129, 1.14*(B17)-0.371) -> 0.769 | C18: This runoff coefficient is calculated based on a Two-line regression model of the volumetric runoff coefficient (Rv) (Granato, 2010), where Rv(%<55) = imperviousness (%) × 0.225 + 0.05, Rv(%>55) = imperviousness (%) × 1.14 - 0.371.
A19: User-Provided Runoff Coefficient | B19: 0.8 | C19: Enter a site-specific runoff coefficient if available. If no value is entered here, the calculated runoff coefficient will be used.
A20: Does the site include additional run-on area? | B20: Yes | C20: Non-roadway, pervious areas such as open space, forest, or agriculture land that drain to the BMP. If Yes, the RUSLE off-site sediment load calculator will be completed.
A24: Step 3: Complete RUSLE Off-Site Sediment Load Calculator
A25: RUSLE Input Parameter | B25: Value | C25: Guidance | N25: =IF(OR(N27="Bare Soil/Construction (0 ft)",N27="Grass/Weeds, No Canopy (0 ft)"),"Hide","Unhide") -> Hide | U25: C Factor for Permanent Pasture, Range, and Idle Lands (Table 10, Wischmeier and Smith, 1978)
A26: Drainage Area | G26: RUSLE Calculation | L26: =IF(B36="","Enter K Factor",B36) -> 0.2 | N26: =IF(N27="Bare Soil/Construction (0 ft)","Bare","Vegetated") -> Vegetated | U26: C Factor: | V26: =IF(N27="Bare Soil/Construction (0 ft)",V29,V27) -> 0.003
A27: Additional Run-On Area from Erodible Open Space (ac) | B27: 2.5 | C27: Only include pervious area from off-site (non-roadway) drainage. This can include land uses such as open space, forest, and agriculture land. Urban land uses should be included in the roadway drainage area. This area is used to determine the potential for clogging from off-site drainage. | G27: =B33 -> No | H27: =B34 -> Silty Clay | I27: =B35 -> 0.5 | K27: K Factor Calculation | L27: =INDEX(L29:L59,MATCH(B34&B35,J29:J59&K29:K59,0)) -> 0.25 | N27: =B38 -> Grass/Weeds, No Canopy (0 ft) | O27: =IF(N27="Bare Soil/Construction (0 ft)",0,IF(N27="Grass/Weeds, No Canopy (0 ft)",0,B39)) -> 0 | P27: =B40 -> Grass | Q27: =B41 -> 95+ | U27: Index Match: | V27: =INDEX(V29:V149,MATCH(N27&O27&P27&Q27,R29:R149&S29:S149&T29:T149&U29:U149,0)) -> 0.003 | W27: =INDEX(W29:W149,MATCH(N27&O27&P27&Q27,R29:R149&S29:S149&T29:T149&U29:U149,0)) -> Low | Y27: LS Factor Calculation: | Z27: =Z34*Z35 -> 0.5185051681
A28: Length of Flow Path (ft) | B28: 50 | C28: Horizontal distance from the origin of overland flow to the point where channelized flow begins or deposition occurs due to a reduction in slope. Surface runoff will usually concentrate in less than 400 ft, though lengths up to 1000 ft may be found. Refer to Renard et al. (1997), Chapter 4 for guidance. Valid range = 15 - 1000 ft. | G28: K Factor Known | H28: Texture Class | I28: Organic Matter | J28: Texture Class | K28: Organic Matter | L28: K Factor | N28: Plant Canopy List | O28: Percent Canopy Cover | P28: Ground Cover Type | Q28: Percent Ground Cover | R28: Plant Canopy Type | S28: Canopy Cover (%) | T28: Ground Cover Type | U28: Ground Cover (%) | V28: C Factor | W28: Rill Erosion Potential | Y28: Parameter | Z28: Value
A29: Slope of Flow Path (%) | B29: 5 | C29: The slope of flow path is the vertical distance/horizontal distance (%) along the length of the flow path. Refer to Renard et al. (1997), Chapter 4 for guidance. Valid range = 0.2 - 60% | G29: Yes | H29: Fine Sand | I29: 0.5 | J29: Fine Sand | K29: 0.5 | L29: 0.16 | N29: Bare Soil/Construction (0 ft) | O29: 25 | P29: Grass | Q29: 0 | R29: Bare Soil/Construction (0 ft) | S29: NA | T29: NA | U29: NA | V29: 1 | W29: High | Y29: Slope Angle (degrees): | Z29: =DEGREES(ATAN(B29/100)) -> 2.862405226
A30: Climate | G30: No | H30: Very Fine Sand | I30: 2 | J30: Fine Sand | K30: 2 | L30: 0.14 | N30: Grass/Weeds, No Canopy (0 ft) | O30: 50 | P30: Weeds | Q30: 20 | R30: Grass/Weeds, No Canopy (0 ft) | S30: 0 | T30: Grass | U30: 0 | V30: 0.45 | W30: =IF(V30>0.2,"Moderate","Low") -> Moderate | Y30: Ratio of Rill to Interrill Erosion (β): | Z30: =(SIN(RADIANS(Z29))/0.0896)/(3*SIN(RADIANS(Z29))^0.8+0.56) -> 0.6692260193
A31: Rainfall-Runoff Erosivity Factor (R) | B31: 10 | C31: Refer to US EPA (2012) Figures 2 - 5 or local guidance to establish R value. Valid range = 10 - 700 | H31: Loamy Sand | I31: 4 | J31: Fine Sand | K31: 4 | L31: 0.1 | N31: Tall Weeds/Short Brush (1.6 ft) | O31: 75 | Q31: 40 | R31: Grass/Weeds, No Canopy (0 ft) | S31: 0 | T31: Grass | U31: 20 | V31: 0.2 | W31: Low | Y31: Rill Erosion Potential: | Z31: =IF(V26=1,"High",W27) -> Low
A32: Soil Type | H32: Loamy Very Fine Sand | J32: Very Fine Sand | K32: 0.5 | L32: 0.42 | N32: Brush or Bushes (6.5 ft) | Q32: 60 | R32: Grass/Weeds, No Canopy (0 ft) | S32: 0 | T32: Grass | U32: 40 | V32: 0.1 | W32: Low | Y32: Modified β: | Z32: =IF(Z31="Low",Z30/2,IF(Z31<>"Moderate",Z30,2*Z30)) -> 0.3346130096
A33: Is the soil erodibility factor known? | B33: No | C33: If Yes is selected a user provided K value will be entered. Refer to the NRCS Web Soil Survey, Soil Erosion Factors Tab to determine K value for a project location. If No is selected the K value will be calculated based on soil texture and organic matter content. | H33: Sandy Loam | J33: Very Fine Sand | K33: 2 | L33: 0.36 | N33: Trees (13 ft) | Q33: 80 | R33: Grass/Weeds, No Canopy (0 ft) | S33: 0 | T33: Grass | U33: 60 | V33: 0.042 | W33: Low | Y33: Slope-Length Exponent (m): | Z33: =Z32/(1+Z32) -> 0.2507191277
A34: Texture Class | B34: Silty Clay | C34: Enter the soil texture class from the dropdown menu. Refer to the NRCS Web Soil Survey, Map Unit Description Tab to determine soil texture class for a project location. | H34: Very Fine Sandy Loam | J34: Very Fine Sand | K34: 4 | L34: 0.28 | Q34: 95+ | R34: Grass/Weeds, No Canopy (0 ft) | S34: 0 | T34: Grass | U34: 80 | V34: 0.013 | W34: Low | Y34: Slope - Length Factor (L): | Z34: =(B28/72.6)^Z33 -> 0.9107346732
A35: Organic Matter Content (%) | B35: 0.5 | C35: Enter the soil organic matter content from the dropdown menu. Refer to the NRCS Web Soil Survey, Soil Physical Properties Tab to determine percent organic matter for a project location. | H35: Silt Loam | J35: Loamy Sand | K35: 0.5 | L35: 0.12 | R35: Grass/Weeds, No Canopy (0 ft) | S35: 0 | T35: Grass | U35: 95+ | V35: 0.003 | W35: Low | Y35: Slope Steepness Factor (S): | Z35: =IF(B29<9,10.8*SIN(RADIANS(Z29))+0.03,16.8*SIN(RADIANS(Z29))-0.5) -> 0.569326263
A36: User Defined Soil Erodibility Factor (K) | B36: 0.2 | C36: Enter the soil erodibility factor (K). Valid range = 0.02 - 0.69. | H36: Clay Loam | J36: Loamy Sand | K36: 2 | L36: 0.1 | R36: Grass/Weeds, No Canopy (0 ft) | S36: 0 | T36: Weeds | U36: 0 | V36: 0.45 | W36: Moderate
A37: Vegetation/Cover | H37: Silt Clay Loam | J37: Loamy Sand | K37: 4 | L37: 0.08 | R37: Grass/Weeds, No Canopy (0 ft) | S37: 0 | T37: Weeds | U37: 20 | V37: 0.24 | W37: Moderate
A38: Plant Canopy Type | B38: Grass/Weeds, No Canopy (0 ft) | C38: Select the plant canopy cover that best represents the site conditions. The average canopy height for the vegetation type, measured as the average distance water drops fall to the ground, is listed in parenthesis. | H38: Silty Clay | J38: Loamy Very Fine Sand | K38: 0.5 | L38: 0.44 | R38: Grass/Weeds, No Canopy (0 ft) | S38: 0 | T38: Weeds | U38: 40 | V38: 0.15 | W38: Low
A39: Canopy Cover (%) | B39: 75 | C39: The canopy cover is defined as the portion of the total surface area that would be hidden from view by the canopy vegetation from a bird's-eye view. | R39: Grass/Weeds, No Canopy (0 ft) | S39: 0 | T39: Weeds | U39: 60 | V39: 0.091 | W39: Low
A40: Ground Cover Type | B40: Grass | C40: Select the predominant ground cover type. Weeds refers to broad-leaf herbaceous plants. | J40: Loamy Very Fine Sand | K40: 2 | L40: 0.38 | R40: Grass/Weeds, No Canopy (0 ft) | S40: 0 | T40: Weeds | U40: 80 | V40: 0.043 | W40: Low
A41: Ground Cover (%) | B41: 95+ | C41: Specify the percent of the ground surface that is covered by vegetation or organic material with a depth greater than 2 inches. | J41: Loamy Very Fine Sand | K41: 4 | L41: 0.3 | R41: Grass/Weeds, No Canopy (0 ft) | S41: 0 | T41: Weeds | U41: 95+ | V41: 0.011 | W41: Low
A42: Practice Management | J42: Sandy Loam | K42: 0.5 | L42: 0.27 | R42: Tall Weeds/Short Brush (1.6 ft) | S42: 25 | T42: Grass | U42: 0 | V42: 0.36 | W42: Moderate
A43: Practice Support Factor (P) | B43: 0.5 | C43: Agricultural management practices (contouring, etc.) or pretreatment BMPs may warrant the inclusion of a practice management factor. The default value of 1 is recommended under most conditions, indicating no management practices present. Refer to Renard et al. (1997), Chapter 6 for guidance. Valid range = 0.05 - 1.0. | J43: Sandy Loam | K43: 2 | L43: 0.24 | R43: Tall Weeds/Short Brush (1.6 ft) | S43: 25 | T43: Grass | U43: 20 | V43: 0.17 | W43: Low
J44: Sandy Loam | K44: 4 | L44: 0.19 | R44: Tall Weeds/Short Brush (1.6 ft) | S44: 25 | T44: Grass | U44: 40 | V44: 0.09 | W44: Low
A45: RUSLE Calculation: | J45: Very Fine Sandy Loam | K45: 0.5 | L45: 0.47 | R45: Tall Weeds/Short Brush (1.6 ft) | S45: 25 | T45: Grass | U45: 60 | V45: 0.038 | W45: Low
A46: RUSLE Factor | B46: Value | J46: Very Fine Sandy Loam | K46: 2 | L46: 0.41 | R46: Tall Weeds/Short Brush (1.6 ft) | S46: 25 | T46: Grass | U46: 80 | V46: 0.013 | W46: Low
A47: Rainfall-Runoff Erosivity (R) | B47: =B31 -> 10 | J47: Very Fine Sandy Loam | K47: 4 | L47: 0.33 | R47: Tall Weeds/Short Brush (1.6 ft) | S47: 25 | T47: Grass | U47: 95+ | V47: 0.003 | W47: Low
A48: Soil Erodibility (K) | B48: =IF(B33="Yes",L26,L27) -> 0.25 | J48: Silt Loam | K48: 0.5 | L48: 0.48 | R48: Tall Weeds/Short Brush (1.6 ft) | S48: 25 | T48: Weeds | U48: 0 | V48: 0.36 | W48: Moderate
A49: Length-Slope (LS) | B49: =Z27 -> 0.5185051681 | J49: Silt Loam | K49: 2 | L49: 0.42 | R49: Tall Weeds/Short Brush (1.6 ft) | S49: 25 | T49: Weeds | U49: 20 | V49: 0.2 | W49: Low
A50: Cover Management (C) | B50: =V26 -> 0.003 | J50: Silt Loam | K50: 4 | L50: 0.33 | R50: Tall Weeds/Short Brush (1.6 ft) | S50: 25 | T50: Weeds | U50: 40 | V50: 0.13 | W50: Low
A51: Practice Support (P) | B51: =B43 -> 0.5 | J51: Clay Loam | K51: 0.5 | L51: 0.28 | R51: Tall Weeds/Short Brush (1.6 ft) | S51: 25 | T51: Weeds | U51: 60 | V51: 0.083 | W51: Low
A52: Unit Area Soil Loss (tons/ac/yr) | B52: =B47*B48*B49*B50*B51 -> 0.00194439438 | J52: Clay Loam | K52: 2 | L52: 0.25 | R52: Tall Weeds/Short Brush (1.6 ft) | S52: 25 | T52: Weeds | U52: 80 | V52: 0.041 | W52: Low
A53: Annual Sediment Load from Off-site Areas (lb/yr) | B53: =ROUND(B52*B27*2000,-2) -> 0 | J53: Clay Loam | K53: 4 | L53: 0.21 | R53: Tall Weeds/Short Brush (1.6 ft) | S53: 25 | T53: Weeds | U53: 95+ | V53: 0.011 | W53: Low
J54: Silt Clay Loam | K54: 0.5 | L54: 0.37 | R54: Tall Weeds/Short Brush (1.6 ft) | S54: 50 | T54: Grass | U54: 0 | V54: 0.26 | W54: Moderate
J55: Silt Clay Loam | K55: 2 | L55: 0.32 | R55: Tall Weeds/Short Brush (1.6 ft) | S55: 50 | T55: Grass | U55: 20 | V55: 0.13 | W55: Low
J56: Silt Clay Loam | K56: 4 | L56: 0.26 | R56: Tall Weeds/Short Brush (1.6 ft) | S56: 50 | T56: Grass | U56: 40 | V56: 0.07 | W56: Low
J57: Silty Clay | K57: 0.5 | L57: 0.25 | R57: Tall Weeds/Short Brush (1.6 ft) | S57: 50 | T57: Grass | U57: 60 | V57: 0.035 | W57: Low
J58: Silty Clay | K58: 2 | L58: 0.23 | R58: Tall Weeds/Short Brush (1.6 ft) | S58: 50 | T58: Grass | U58: 80 | V58: 0.012 | W58: Low
J59: Silty Clay | K59: 4 | L59: 0.19 | R59: Tall Weeds/Short Brush (1.6 ft) | S59: 50 | T59: Grass | U59: 95+ | V59: 0.003 | W59: Low
R60: Tall Weeds/Short Brush (1.6 ft) | S60: 50 | T60: Weeds | U60: 0 | V60: 0.26 | W60: Moderate
R61: Tall Weeds/Short Brush (1.6 ft) | S61: 50 | T61: Weeds | U61: 20 | V61: 0.16 | W61: Low
R62: Tall Weeds/Short Brush (1.6 ft) | S62: 50 | T62: Weeds | U62: 40 | V62: 0.11 | W62: =IF(V62>0.2,"Moderate","Low") -> Low
R63: Tall Weeds/Short Brush (1.6 ft) | S63: 50 | T63: Weeds | U63: 60 | V63: 0.076 | W63: Low
R64: Tall Weeds/Short Brush (1.6 ft) | S64: 50 | T64: Weeds | U64: 80 | V64: 0.039 | W64: Low
R65: Tall Weeds/Short Brush (1.6 ft) | S65: 50 | T65: Weeds | U65: 95+ | V65: 0.011 | W65: Low
R66: Tall Weeds/Short Brush (1.6 ft) | S66: 75 | T66: Grass | U66: 0 | V66: 0.17 | W66: Low
R67: Tall Weeds/Short Brush (1.6 ft) | S67: 75 | T67: Grass | U67: 20 | V67: 0.1 | W67: Low
R68: Tall Weeds/Short Brush (1.6 ft) | S68: 75 | T68: Grass | U68: 40 | V68: 0.06 | W68: Low
R69: Tall Weeds/Short Brush (1.6 ft) | S69: 75 | T69: Grass | U69: 60 | V69: 0.032 | W69: Low
R70: Tall Weeds/Short Brush (1.6 ft) | S70: 75 | T70: Grass | U70: 80 | V70: 0.011 | W70: Low
R71: Tall Weeds/Short Brush (1.6 ft) | S71: 75 | T71: Grass | U71: 95+ | V71: 0.003 | W71: Low
R72: Tall Weeds/Short Brush (1.6 ft) | S72: 75 | T72: Weeds | U72: 0 | V72: 0.17 | W72: Low
R73: Tall Weeds/Short Brush (1.6 ft) | S73: 75 | T73: Weeds | U73: 20 | V73: 0.12 | W73: Low
R74: Tall Weeds/Short Brush (1.6 ft) | S74: 75 | T74: Weeds | U74: 40 | V74: 0.09 | W74: Low
R75: Tall Weeds/Short Brush (1.6 ft) | S75: 75 | T75: Weeds | U75: 60 | V75: 0.068 | W75: Low
R76: Tall Weeds/Short Brush (1.6 ft) | S76: 75 | T76: Weeds | U76: 80 | V76: 0.038 | W76: Low
R77: Tall Weeds/Short Brush (1.6 ft) | S77: 75 | T77: Weeds | U77: 95+ | V77: 0.011 | W77: Low
R78: Brush or Bushes (6.5 ft) | S78: 25 | T78: Grass | U78: 0 | V78: 0.4 | W78: Moderate
R79: Brush or Bushes (6.5 ft) | S79: 25 | T79: Grass | U79: 20 | V79: 0.18 | W79: Low
R80: Brush or Bushes (6.5 ft) | S80: 25 | T80: Grass | U80: 40 | V80: 0.09 | W80: Low
R81: Brush or Bushes (6.5 ft) | S81: 25 | T81: Grass | U81: 60 | V81: 0.04 | W81: Low
R82: Brush or Bushes (6.5 ft) | S82: 25 | T82: Grass | U82: 80 | V82: 0.013 | W82: Low
R83: Brush or Bushes (6.5 ft) | S83: 25 | T83: Grass | U83: 95+ | V83: 0.003 | W83: Low
R84: Brush or Bushes (6.5 ft) | S84: 25 | T84: Weeds | U84: 0 | V84: 0.4 | W84: Moderate
R85: Brush or Bushes (6.5 ft) | S85: 25 | T85: Weeds | U85: 20 | V85: 0.22 | W85: Moderate
R86: Brush or Bushes (6.5 ft) | S86: 25 | T86: Weeds | U86: 40 | V86: 0.14 | W86: Low
R87: Brush or Bushes (6.5 ft) | S87: 25 | T87: Weeds | U87: 60 | V87: 0.087 | W87: Low
R88: Brush or Bushes (6.5 ft) | S88: 25 | T88: Weeds | U88: 80 | V88: 0.042 | W88: Low
R89: Brush or Bushes (6.5 ft) | S89: 25 | T89: Weeds | U89: 95+ | V89: 0.011 | W89: Low
R90: Brush or Bushes (6.5 ft) | S90: 50 | T90: Grass | U90: 0 | V90: 0.34 | W90: Moderate
R91: Brush or Bushes (6.5 ft) | S91: 50 | T91: Grass | U91: 20 | V91: 0.16 | W91: Low
R92: Brush or Bushes (6.5 ft) | S92: 50 | T92: Grass | U92: 40 | V92: 0.08 | W92: Low
R93: Brush or Bushes (6.5 ft) | S93: 50 | T93: Grass | U93: 60 | V93: 0.038 | W93: Low
R94: Brush or Bushes (6.5 ft) | S94: 50 | T94: Grass | U94: 80 | V94: 0.012 | W94: =IF(V94>0.2,"Moderate","Low") -> Low
R95: Brush or Bushes (6.5 ft) | S95: 50 | T95: Grass | U95: 95+ | V95: 0.003 | W95: =IF(V95>0.2,"Moderate","Low") -> Low
R96: Brush or Bushes (6.5 ft) | S96: 50 | T96: Weeds | U96: 0 | V96: 0.34 | W96: Moderate
R97: Brush or Bushes (6.5 ft) | S97: 50 | T97: Weeds | U97: 20 | V97: 0.19 | W97: Low
R98: Brush or Bushes (6.5 ft) | S98: 50 | T98: Weeds | U98: 40 | V98: 0.13 | W98: Low
R99: Brush or Bushes (6.5 ft) | S99: 50 | T99: Weeds | U99: 60 | V99: 0.082 | W99: Low
R100: Brush or Bushes (6.5 ft) | S100: 50 | T100: Weeds | U100: 80 | V100: 0.041 | W100: Low
R101: Brush or Bushes (6.5 ft) | S101: 50 | T101: Weeds | U101: 95+ | V101: 0.011 | W101: Low
R102: Brush or Bushes (6.5 ft) | S102: 75 | T102: Grass | U102: 0 | V102: 0.28 | W102: Moderate
R103: Brush or Bushes (6.5 ft) | S103: 75 | T103: Grass | U103: 20 | V103: 0.14 | W103: Low
R104: Brush or Bushes (6.5 ft) | S104: 75 | T104: Grass | U104: 40 | V104: 0.08 | W104: Low
R105: Brush or Bushes (6.5 ft) | S105: 75 | T105: Grass | U105: 60 | V105: 0.036 | W105: Low
R106: Brush or Bushes (6.5 ft) | S106: 75 | T106: Grass | U106: 80 | V106: 0.012 | W106: Low
R107: Brush or Bushes (6.5 ft) | S107: 75 | T107: Grass | U107: 95+ | V107: 0.003 | W107: Low
R108: Brush or Bushes (6.5 ft) | S108: 75 | T108: Weeds | U108: 0 | V108: 0.28 | W108: Moderate
R109: Brush or Bushes (6.5 ft) | S109: 75 | T109: Weeds | U109: 20 | V109: 0.17 | W109: Low
R110: Brush or Bushes (6.5 ft) | S110: 75 | T110: Weeds | U110: 40 | V110: 0.12 | W110: Low
R111: Brush or Bushes (6.5 ft) | S111: 75 | T111: Weeds | U111: 60 | V111: 0.078 | W111: Low
R112: Brush or Bushes (6.5 ft) | S112: 75 | T112: Weeds | U112: 80 | V112: 0.04 | W112: Low
R113: Brush or Bushes (6.5 ft) | S113: 75 | T113: Weeds | U113: 95+ | V113: 0.011 | W113: Low
R114: Trees (13 ft) | S114: 25 | T114: Grass | U114: 0 | V114: 0.42 | W114: Moderate
R115: Trees (13 ft) | S115: 25 | T115: Grass | U115: 20 | V115: 0.19 | W115: Low
R116: Trees (13 ft) | S116: 25 | T116: Grass | U116: 40 | V116: 0.1 | W116: Low
R117: Trees (13 ft) | S117: 25 | T117: Grass | U117: 60 | V117: 0.041 | W117: Low
R118: Trees (13 ft) | S118: 25 | T118: Grass | U118: 80 | V118: 0.013 | W118: Low
R119: Trees (13 ft) | S119: 25 | T119: Grass | U119: 95+ | V119: 0.003 | W119: Low
R120: Trees (13 ft) | S120: 25 | T120: Weeds | U120: 0 | V120: 0.42 | W120: Moderate
R121: Trees (13 ft) | S121: 25 | T121: Weeds | U121: 20 | V121: 0.23 | W121: Moderate
R122: Trees (13 ft) | S122: 25 | T122: Weeds | U122: 40 | V122: 0.14 | W122: Low
R123: Trees (13 ft) | S123: 25 | T123: Weeds | U123: 60 | V123: 0.089 | W123: Low
R124: Trees (13 ft) | S124: 25 | T124: Weeds | U124: 80 | V124: 0.042 | W124: Low
R125: Trees (13 ft) | S125: 25 | T125: Weeds | U125: 95+ | V125: 0.011 | W125: Low
R126: Trees (13 ft) | S126: 50 | T126: Grass | U126: 0 | V126: 0.39 | W126: Moderate
R127: Trees (13 ft) | S127: 50 | T127: Grass | U127: 20 | V127: 0.18 | W127: Low
R128: Trees (13 ft) | S128: 50 | T128: Grass | U128: 40 | V128: 0.09 | W128: Low
R129: Trees (13 ft) | S129: 50 | T129: Grass | U129: 60 | V129: 0.04 | W129: Low
R130: Trees (13 ft) | S130: 50 | T130: Grass | U130: 80 | V130: 0.013 | W130: Low
R131: Trees (13 ft) | S131: 50 | T131: Grass | U131: 95+ | V131: 0.003 | W131: Low
R132: Trees (13 ft) | S132: 50 | T132: Weeds | U132: 0 | V132: 0.39 | W132: Moderate
R133: Trees (13 ft) | S133: 50 | T133: Weeds | U133: 20 | V133: 0.21 | W133: Moderate
R134: Trees (13 ft) | S134: 50 | T134: Weeds | U134: 40 | V134: 0.14 | W134: Low
R135: Trees (13 ft) | S135: 50 | T135: Weeds | U135: 60 | V135: 0.087 | W135: Low
R136: Trees (13 ft) | S136: 50 | T136: Weeds | U136: 80 | V136: 0.042 | W136: Low
R137: Trees (13 ft) | S137: 50 | T137: Weeds | U137: 95+ | V137: 0.011 | W137: Low
R138: Trees (13 ft) | S138: 75 | T138: Grass | U138: 0 | V138: 0.36 | W138: Moderate
R139: Trees (13 ft) | S139: 75 | T139: Grass | U139: 20 | V139: 0.17 | W139: Low
R140: Trees (13 ft) | S140: 75 | T140: Grass | U140: 40 | V140: 0.09 | W140: Low
R141: Trees (13 ft) | S141: 75 | T141: Grass | U141: 60 | V141: 0.039 | W141: Low
R142: Trees (13 ft) | S142: 75 | T142: Grass | U142: 80 | V142: 0.012 | W142: Low
R143: Trees (13 ft) | S143: 75 | T143: Grass | U143: 95+ | V143: 0.003 | W143: Low
R144: Trees (13 ft) | S144: 75 | T144: Weeds | U144: 0 | V144: 0.36 | W144: Moderate
R145: Trees (13 ft) | S145: 75 | T145: Weeds | U145: 20 | V145: 0.2 | W145: Low
R146: Trees (13 ft) | S146: 75 | T146: Weeds | U146: 40 | V146: 0.13 | W146: Low
R147: Trees (13 ft) | S147: 75 | T147: Weeds | U147: 60 | V147: 0.084 | W147: Low
R148: Trees (13 ft) | S148: 75 | T148: Weeds | U148: 80 | V148: 0.041 | W148: Low
R149: Trees (13 ft) | S149: 75 | T149: Weeds | U149: 95+ | V149: 0.011 | W149: Low

Sheet BMP Design
A1: ='Project Location'!A1 -> NCHRP 25-51 Roadside BMP Clogging Risk Assessment Tool | D1: Key
A2: Project Title | B2: ='Project Location'!C2 -> Example Run | D2: User Steps | E2: Default data; editing allowed with rationale
A3: Project Location | B3: ='Project Location'!C3 -> Horton, KS | D3: User Entered Data | E3: Guidance
A4: Company | B4: ='Project Location'!C4 -> ABC Engineering | D4: Reference Data; do not edit cells | E4: Reference Links
A6: BMP Design Inputs
A8: Step 1: Provide data describing the media/soil parameters of the practice | G8: Look Up Tables and Lists | K8: =IF(B26="Off-Line",0.8,IF(B26="On-Line",1,"Select Practice Type")) -> 0.8 | M8: =IF(M9="Sediment Forebay Only",0.25,IF(M9="TAPE Pretreatment GULD",0.5,IF(M9="TAPE Basic Treatment GULD",0.8,"Enter Removal Efficiency"))) -> 0.5
A9: Parameter | B9: Value | C9: Guidance | G9: =B11 -> Sand (HSG A) | H9: =VLOOKUP(G9,G11:H21,2,FALSE) -> 4.49 | I9: =B10 -> Infiltration | J9: =B14 -> Yes | K9: =B26 -> Off-Line | L9: =B28 -> Yes | M9: =B29 -> TAPE Pretreatment GULD | N9: =B31 -> Surface | O9: =B32 -> Vegetated | R9: Infiltration Rates of Selected Practice | X9: Load to Clog Calculation | AI9: Rate of Reduction (in/hr/lb/ft2)
A10: Practice Type | B10: Infiltration | C10: Infiltration practices refer to retention facilities designed to infiltrate water into the existing underlying soils (i.e. infiltration basin and bioretention without an underdrain). Filtration practices refer to detention facilities with flow through a media layer which leaves the site through controlled drainage (i.e. sand filter and bioretention with an underdrain). | G10: Underlying Soil | H10: Infiltration Rate (in/hr) | I10: Practice Type? | J10: Media Layer Present? | K10: Flow Configuration? | L10: Pretreatment Present? | M10: Type of Pretreatment? | N10: Location? | O10: Vegetation? | R10: Practice Type: | S10: Infiltration | T10: Filtration | U10: Selected | V10: Location | W10: Vegetated | X10: Bin | Y10: Bin Initial Infiltration Rate (in/hr) | Z10: Bin Final Infiltration Rate (in/hr) | AA10: Rate of Reduction (in/hr/lb/ft2) | AB10: Scenario Initial Infiltration Rate (in/hr) | AC10: Scenario Final Infiltration Rate (in/hr) | AD10: Load to Clog (lb/ft2) | AE10: Graph Initial Infiltration Rate (in/hr) | AF10: Graph Final Infiltration Rate (in/hr) | AG10: Applied Load (lb/ft2) | AI10: 25th Percentile (Not Used) | AJ10: Median (Applied to All Practices)
A11: Underlying Soil Type | B11: Sand (HSG A) | C11: Hydrologic soil group (HSG) is provided in parenthesis for the soil type. Refer to the USDA Texture Triangle for soil type gradations. | G11: Sand (HSG A) | H11: 4.49 | I11: Infiltration | J11: Yes | K11: Off-Line | L11: Yes | M11: Sediment Forebay Only | N11: Surface | O11: Vegetated | R11: Initial Infiltration Rate (in/hr): | S11: =IF(B14="Yes",B15,IF(B13="",B12,B13)) -> 10 | T11: =B18 -> 30 | U11: =IF(B10="Infiltration",S11,T11) -> 10 | V11: =N9 -> Surface | W11: =O9 -> Vegetated | X11: 1 | Y11: 150 | Z11: 25 | AA11: 180.2688319 | AB11: =IF(U11>Y11,Y11,U11) -> 10 | AC11: =IF(U12<Z11,Z11,U12) -> 25 | AD11: =IF((AB11-AC11)/AA11>0,(AB11-AC11)/AA11,0) -> 0 | AE11: =IF(U11>Y11,Y11,U11) -> 10 | AF11: =IF(U11>Z11,Z11,U11) -> 10 | AG11: =IF((AE11-AF11)/AA11>0,(AE11-AF11)/AA11,0) -> 0 | AI11: 314.586785 | AJ11: 180.2688319
A12: Default Initial Soil Infiltration Rate (in/hr) | B12: =H9 -> 4.49 | C12: Default value do not edit. The infiltration rate is determined based on the underlying soil type input. Values extracted from the USDA SPAW Soil Water Characteristics Model. | G12: Loamy Sand (HSG A) | H12: 3.59 | I12: Filtration | J12: No | K12: On-Line | L12: No | M12: TAPE Pretreatment GULD | N12: Below Grade | O12: Unvegetated | R12: Final Infiltration Rate (in/hr): | S12: =B16 -> 0.5 | T12: =B19 -> 0.5 | U12: =IF(B10="Infiltration",S12,T12) -> 0.5 | X12: 2 | Y12: 25 | Z12: 2.5 | AA12: 9.71812221 | AB12: =IF(U11>Y12,Y12,U11) -> 10 | AC12: =IF(U12<Z12,Z12,U12) -> 2.5 | AD12: =IF((AB12-AC12)/AA12>0,(AB12-AC12)/AA12,0) -> 0.7717540321 | AE12: =IF(U11>Y12,Y12,U11) -> 10 | AF12: =IF(U11>Z12,Z12,U11) -> 2.5 | AG12: =IF((AE12-AF12)/AA12>0,(AE12-AF12)/AA12,0)+AG11 -> 0.7717540321 | AI12: 10.13103317 | AJ12: 9.71812221
A13: User-Provided Soil Infiltration Rate (in/hr) | B13: 1.33 | C13: Enter a site-specific underlying soil infiltration rate if available. If no value is entered here, the default soil infiltration rate will be used. | G13: Sandy Loam (HSG A) | H13: 1.98 | M13: TAPE Basic Treatment GULD | X13: 3 | Y13: 2.5 | Z13: 0.75 | AA13: 2.266073433 | AB13: =IF(U11>Y13,Y13,U11) -> 2.5 | AC13: =IF(U12<Z13,Z13,U12) -> 0.75 | AD13: =IF((AB13-AC13)/AA13>0,(AB13-AC13)/AA13,0) -> 0.7722609402 | AE13: =IF(U11>Y13,Y13,U11) -> 2.5 | AF13: =IF(U11>Z13,Z13,U11) -> 0.75 | AG13: =IF((AE13-AF13)/AA13>0,(AE13-AF13)/AA13,0)+AG12 -> 1.544014972 | AI13: 3.675106273 | AJ13: 2.266073433
A14: Will a sacrificial media or sand layer be used over the underlying soil? | B14: Yes | C14: This refers to a more granular media that is placed above the in situ soil to reduce clogging risks. Recommended depth is 6 inches or greater. This should have a higher infiltration rate than the underlying soil. | G14: Silt (HSG B) | H14: 0.75 | M14: User Specified | X14: 4 | Y14: 0.75 | Z14: 0.25 | AA14: 0.5661033265 | AB14: =IF(U11>Y14,Y14,U11) -> 0.75 | AC14: =IF(U12<Z14,Z14,U12) -> 0.5 | AD14: =IF((AB14-AC14)/AA14>0,(AB14-AC14)/AA14,0) -> 0.4416154937 | AE14: =IF(U11>Y14,Y14,U11) -> 0.75 | AF14: =IF(U11>Z14,Z14,U11) -> 0.25 | AG14: =IF((AE14-AF14)/AA14>0,(AE14-AF14)/AA14,0)+AG13 -> 2.42724596 | AI14: 0.8027406041 | AJ14: 0.5661033265
A15: Initial Media Layer Infiltration Rate (in/hr) | B15: 10 | C15: Enter the initial infiltration rate of the media layer.Valid range = 1 to 150 in/hr. | G15: Loam (HSG B) | H15: 0.73 | AC15: Total | AD15: =SUM(AD11:AD14) -> 1.985630466
A16: Minimum Allowable Infiltration Rate To Trigger Maintenance (in/hr) | B16: 0.5 | C16: Enter the infiltration rate of the limiting layer (media or soil) that will trigger rehabilitative maintenance. This value and the design infiltration rate will be used to determine the load to clog. The minimum allowable infiltration rate must be less than the initial/design infiltration rate. The minimum infiltration rate evaluated by the tool is 0.25 in/hr. Recommended value range: 0.25 to 2.0 in/hr. | G16: Sandy Clay Loam (HSG C) | H16: 0.31
G17: Silty Clay Loam (HSG D) | H17: 0.23
A18: Initial Filter Media Infiltration Rate (in/hr) | B18: 30 | C18: Enter the design initial infiltration rate of the filter media. If multiple layers are used, enter the layer with the limiting infiltration rate. Valid range = 1 to 150 in/hr. | G18: Clay Loam (HSG D) | H18: 0.18
A19: Minimum Allowable Filter Media Infiltration Rate to Trigger Maintenance (in/hr) | B19: 0.5 | C19: Enter the infiltration rate of the filter media that will trigger rehabilitative maintenance. This value and the design infiltration rate will be used to determine the load to clog. The minimum allowable infiltration rate must be less than the initial/design infiltration rate. The minimum infiltration rate evaluated by the tool is 0.25 in/hr. Recommended value range: 0.25 to 2.0 in/hr. | G19: Silty Clay (HSG D) | H19: 0.15
G20: Clay (HSG D) | H20: 0.03
A21: Step 2: Provide data describing the design and configuration of the BMP | G21: Sandy Clay (HSG D) | H21: 0.03
A22: Parameter | B22: Value | C22: Guidance
A23: 85th Percentile Event Runoff Volume (ft3) | B23: =O26 -> 30346.8 | C23: Reference value do not edit. Volume is based on the runoff coefficient, precipitation depth, and roadway tributary area. Off-site drainage is not included. Provided for sizing reference only, does not affect clogging calculation.
A24: Practice Storage Volume (ft3) | B24: 32500 | C24: Specify the ponded storage volume of the practice to the overflow depth. This parameter is used to calculate the BMP drawdown time. If no storage volume is provided enter zero. | G24: Unit Area Loading Rate Calculation
A25: BMP Infiltrating Footprint Area (ft2) | B25: 11000 | C25: Specify the infiltrating area of the BMP, equivalent to the surface area of the media or underlying soil for which runoff will flow through. Measure the BMP footprint area halfway up the side slopes to account for system drawdown. The practice footprint will be used to determine the area over which sediment accumulates and infiltration occurs. | G25: Component | H25: Runoff Coefficient | I25: Tributary Area (ac) | J25: BMP Footprint (ft2) | K25: Footprint Area (% Watershed Area) | L25: Average Annual Precipitation (in) | M25: Annual Roadway Runoff Volume (cf/yr) | N25: 85th Percentile Precipitation (in) | O25: 85th Percentile Roadway Runoff Volume (cf) | P25: Roadway TSS Concentration (mg/L) | Q25: Annual Sediment Load From Component Area (lb/yr) | R25: BMP Captured Annual Sediment Load (lb/yr) | S25: BMP Captured Unit Area Sediment Load (lb/ft2/yr) | T25: Load to Clog (lb/ft2) | U25: Time to Rehabilitative Maintenance (yrs)
A26: Select Flow Configuration | B26: Off-Line | C26: On line flow through systems route the entirety of inflow through the treatment area. Off-line BMPs, have designed bypass of peak flows. This selection sets the default average annual BMP sediment capture rate. | G26: Roadway | H26: =IF('Tributary Area'!B19="",'Tributary Area'!B18,'Tributary Area'!B19) -> 0.8 | I26: ='Tributary Area'!B16 -> 9.5 | L26: =IF('Project Location'!P21="",'Project Location'!P16,'Project Location'!P21) -> 35.44440587 | M26: =H26*L26*I26*43560/12 -> 977840.269 | N26: =IF('Project Location'!P22="",'Project Location'!P17,'Project Location'!P22) -> 1.1 | O26: =H26*N26*I26*43560/12 -> 30346.8 | P26: =IF('Tributary Area'!B12="",'Tributary Area'!B11,'Tributary Area'!B12) -> 50 | Q26: =M26*28.3168*P26*10^-3*0.00220462 -> 3052.220036 | R26: =IF(B28="No",B27*Q26,(1-B30)*B27*Q26) -> 1220.888015 | S26: =R26/B25 -> 0.1109898195 | T26: =AD15 -> 1.985630466 | U26: =T26/S26 -> 17.89020358
A27: Average Annual BMP Sediment Capture Rate (%) | B27: 0.8 | C27: Enter the percentage of the annual sediment load that is captured by the BMP. Default values are 100% for on-line flow through practices and 80% for off-line storage BMPs. Refer to NCHRP 792 Long Term Performance and Life Cycle Cost of BMPs evaluation tools for detailed calculation of sediment capture rate based on BMP volume capture and treatment efficiency (Taylor et al, 2014). | G27: Off-Site Drainage | I27: =IF('Tributary Area'!B20="No",0,'Tributary Area'!B27) -> 2.5 | Q27: =IF('Tributary Area'!B20="No",0,'Tributary Area'!B53) -> 0 | R27: =IF(B28="No",B27*Q27,(1-B30)*B27*Q27) -> 0 | S27: =R27/B25 -> 0
A28: Is pretreatment present? | B28: Yes | C28: Specify if pretreatment is provided prior to inflow into the BMP. | G28: Total | I28: =I26+I27 -> 12 | J28: =B25 -> 11000 | K28: =J28/(43560*I28) -> 0.02104377104 | Q28: =Q26+Q27 -> 3052.220036 | R28: =R26+R27 -> 1220.888015 | S28: =S26+S27 -> 0.1109898195 | T28: =AD15 -> 1.985630466 | U28: =T28/S28 -> 17.89020358
A29: Type of Pretreatment | B29: TAPE Pretreatment GULD | C29: Select the type of pretreatment provided to generate the default removal efficiency for pretreatment. Estimated values are based on the Washington Department of Ecology TAPE guidelines. Refer to the TAPE Emerging Technologies List for practices that have been rated for pretreatment and basic general use level designations (GULD). If user specified is selected, input the pretreatment removal efficiency in the cell below.
A30: Sediment Removal Efficiency of Pretreatment (%) | B30: 0.5 | C30: Default values: Sediment Forebay Only = 25%, TAPE Pretreatment GULD = 50%, and TAPE Basic Treatment GULD = 80%. If only a portion of inflow is treated by pretreatment scale the removal efficiency by the portion of annual inflow volume that is treated by the pretreatment device. A user-defined value may be provided to override default values. | G30: Drawdown Time Calculation
A31: Is the BMP exposed to the surface or below grade? | B31: Surface | C31: Specify if the BMP is located at the surface or below grade. This selection will not impact the tool calculation due to data limitations, however, will be used to identify possible risk. | G31: Storage Volume (ft3) | H31: Surface Area (ft2) | I31: Ponding Depth (ft) | J31: Infiltration Practice Limiting Layer Initial Infiltration Rate (in/hr) | K31: Infiltration Practice Limiting Layer Final Infiltration Rate (in/hr) | L31: Initial Drawdown Infiltration Rate | M31: Final Drawdown Infiltration Rate | N31: Initial Drawdown Time (hr) | O31: Final Drawdown Time (hr)
A32: Is the BMP vegetated? | B32: Vegetated | C32: Vegetated BMPs have the potential to reduce clogging risk due to the formation of macropores and bioturbation. Surface vegetated BMPs may be able to assimilate the influent sediment load over time eliminating the need for rehabilitative maintenance (Hatt et al., 2008; Le Coustumer et al., 2011; Limouzin et al., 2011). This selection will not impact the tool calculation due to data limitations, however, will be used to identify potential risk. | G32: =B24 -> 32500 | H32: =B25 -> 11000 | I32: =G32/H32 -> 2.954545455 | J32: =IF(B14="Yes",MIN((IF(B13="",B12,B13),B15)),IF(B13="",B12,B13)) -> 1.33 | K32: =MIN(B12,B16) -> 0.5 | L32: =IF(AND(B10="Infiltration",B14="Yes"),J32,U11) -> 1.33 | M32: =IF(B10="Infiltration",K32,U11) -> 0.5 | N32: =I32/(L32/12) -> 26.65755297 | O32: =I32/(M32/12) -> 70.90909091

Sheet Results Summary Report
A1: ='Project Location'!A1 -> NCHRP 25-51 Roadside BMP Clogging Risk Assessment Tool | F1: Key
A2: Project Title | B2: ='Project Location'!C2 -> Example Run | F2: User Steps | G2: Default data; editing allowed with rationale
A3: Project Location | B3: ='Project Location'!C3 -> Horton, KS | F3: User Entered Data | G3: Guidance
A4: Company | B4: ='Project Location'!C4 -> ABC Engineering | F4: Reference Data; do not edit cells | G4: Reference Links
A6: Results Summary Report
A8: Summary of Modeled Scenario
A9: ="The modeled scenario consists of a roadway drainage area of "&'BMP Design'!I26&" acres at "&'Tributary Area'!B17*100&"% impervious, with an additional "&'BMP Design'!I27&" acres of pervious off-site drainage ("&'BMP Design'!I28&"-acre total drainage area)." -> The modeled scenario consists of a roadway drainage area of 9.5 acres at 100% impervious, with an additional 2.5 acres of pervious off-site drainage (12-acre total drainage area).
A10: =IF('Project Location'!P21='Project Location'!P16,"Analysis is based on an average annual precipitation depth of "&ROUND('Project Location'!P16,1)&" in for the "&'Project Location'!P11&" rain gauge in "&'Project Location'!O11&".","Analysis is based on a user-specified average annual precipitation depth of "&ROUND('Project Location'!P21,1)&" in.") -> Analysis is based on an average annual precipitation depth of 35.4 in for the [3] NORTHEAST - HORTON rain gauge in Kansas.
A11: ="Clogging is assessed for a "&'BMP Design'!J28&" sq. ft. "&LOWER('BMP Design'!O9)&" "&LOWER('BMP Design'!N9)&" "&LOWER('BMP Design'!I9)&" practice with an initial infiltration rate of "&'BMP Design'!U11&" in/hr and a minimum allowable infiltration rate of "&'BMP Design'!U12&" in/hr." -> Clogging is assessed for a 11000 sq. ft. vegetated surface infiltration practice with an initial infiltration rate of 10 in/hr and a minimum allowable infiltration rate of 0.5 in/hr.
A12: =IF('BMP Design'!L9="Yes","Pretreatment is included in the design with a sediment removal efficiency of "&'BMP Design'!M8*100&"%.", "Pretreatment is not included in the design.") -> Pretreatment is included in the design with a sediment removal efficiency of 50%.
A14: Design Warnings | I14: Display | J14: Order | L14: Warning
A15: =IF(J15=1,L15,IF(J16=1,L16,IF(J17=1,L17,IF(J18=1,L18,IF(J19=1,L19,"No fatal design warnings have been identified, view results below."))))) -> The surface storage drawdown time at the initial infiltration rate is greater than 24 hours (current design = 26.7 hours), consider revising practice configuration. | I15: =IF(AND('BMP Design'!B10="Infiltration",'BMP Design'!J32<0.75),"Yes","No") -> No | J15: =IF(I15="No",0,1) -> 0 | L15: ="An infiltration practice has been specified with an underlying soil infiltration rate less than 0.75 in/hr (current design = "&ROUND('BMP Design'!J32,1)&" in/hr), consider changing practice type to filtration." -> An infiltration practice has been specified with an underlying soil infiltration rate less than 0.75 in/hr (current design = 1.3 in/hr), consider changing practice type to filtration.
A16: =IF(J16=2,L16,IF(J17=2,L17,IF(J18=2,L18,IF(J19=2,L19,"")))) ->  | I16: =IF('BMP Design'!N32>24,"Yes","No") -> Yes | J16: =IF(I16="No",0,J15+1) -> 1 | L16: ="The surface storage drawdown time at the initial infiltration rate is greater than 24 hours (current design = "&ROUND('BMP Design'!N32,1)&" hours), consider revising practice configuration." -> The surface storage drawdown time at the initial infiltration rate is greater than 24 hours (current design = 26.7 hours), consider revising practice configuration.
A17: =IF(J17=3,L17,IF(J18=3,L18,IF(J19=3,L19,""))) ->  | I17: =IF('BMP Design'!O32>72,"Yes","No") -> No | J17: =IF(I17="No",0,MAX(J15,J16)+1) -> 0 | L17: ="The surface storage drawdown time at the minimum allowable infiltration rate is greater than 72 hours (current design = "&ROUND('BMP Design'!O32,1)&" hours), consider revising practice configuration." -> The surface storage drawdown time at the minimum allowable infiltration rate is greater than 72 hours (current design = 70.9 hours), consider revising practice configuration.
A18: =IF(J18=4,L18,IF(J19=4,L19,"")) ->  | I18: =IF(B25<10,"Yes","No") -> No | J18: =IF(I18="No",0,MAX(J15,J16,J17)+1) -> 0 | L18: ="The time to rehabiltative maintenance is less than 10 years (current design = "&ROUND(B25,0)&" years) and due to uncertainty may clog much sooner. Consult the risk factor assessment below for identification of critical parameters." -> The time to rehabiltative maintenance is less than 10 years (current design = 18 years) and due to uncertainty may clog much sooner. Consult the risk factor assessment below for identification of critical parameters.
A21: Infiltration Rate Reduction Summary
A22: Parameter | B22: Value | C22: Guidance
A23: Load to Rehabilitative Maintenance (lb/ft2) | B23: ='BMP Design'!T28 -> 1.985630466 | C23: The applied load to reduce the infiltration rate from the initial to minimum allowable value. The tool uses estimates for the infiltration rate of reduction per applied load for different infiltration rate zones based on laboratory experiments (Clark and Pitt, 2010; Le Coustumer et al., 2012; Limouzin et al., 2011). Refer to the User Guide for method details.
A24: BMP Captured Unit Area Sediment Load (lb/ft2/yr) | B24: ='BMP Design'!S28 -> 0.1109898195 | C24: The annual BMP sediment capture rate is normalized by BMP footprint area and calculated based on the runoff volume, roadway runoff concentration, and off-site sediment load determined by RUSLE. The sediment load that bypasses the BMP or is removed by pretreatment is not included in the BMP capture rate. The load applied over time is graphed below.
A25: Time to Rehabilitative Maintenance (yrs) | B25: =ROUND('BMP Design'!U28,1) -> 17.9 | C25: The time to rehabilitative maintenance is the duration for the initial infiltration rate to be reduced to the minimum allowable value due to sediment loading. If this value is less than acceptable for maintenance considerations consider the risk factors identified below or adjust the media infiltration rate. This value will be flagged for surface practices with a time to rehabilitative maintenance less than 10 years. The predicted infiltration rate reduction over time is graphed below.
A48: Risk Factor Assessment
A49: Parameter | B49: Value | C49: Risk | D49: Guidance
A50: Drawdown Rate | B50: (see risk factor range table below for levels) | I50: Parameter | J50: Risk
A51: Practice Footprint Area (% Watershed Area) | B51: ='BMP Design'!K28 -> 0.02104377104 | C51: =IF(OR(J51="High",J52="High"),"High",IF(OR(J51="Moderate",J52="Moderate"),"Moderate","Low")) -> High | D51: The drawdown rate risk factor is identified based on the drawdown time for the initial and minimum allowable infiltration rate inputs. The higher initial or final drawdown time risk is identified in the table. Extended drawdown times increase the risk for biofouling, reduce capture efficiency, and may lead to vector or human safety risks. Outlet control is encouraged for filtration practices using highly permeable media. | I51: Initial Infiltration Rate | J51: =IF(B52<12,"Low",IF(B52<24,"Moderate","High")) -> High
A52: Drawdown Time at Initial Infiltration Rate (hr) | B52: ='BMP Design'!N32 -> 26.65755297 | I52: Final Infiltration Rate | J52: =IF(B53<24,"Low",IF(B53<72,"Moderate","High")) -> Moderate
A53: Drawdown Time at Minimum Allowable Infiltration Rate (hr) | B53: ='BMP Design'!O32 -> 70.90909091
A54: Off-Site Drainage
A55: Annual Sediment Load from Roadway Area (lb/yr) | B55: ='BMP Design'!Q26 -> 3052.220036 | C55: =IF(B57<5/100,"Low",IF(B57<25/100,"Moderate","High")) -> Low | D55: Off-site drainage risk is identified based on the percentage of annual sediment load that is due to off-site drainage. Sediment loads are calculated based on tributary area and RUSLE inputs. Consider rerouting off-site drainage areas or providing additional pretreatment for scenarios with high off-site sediment loading.
A56: Annual Sediment Load from Off-Site Area (lb/yr) | B56: ='BMP Design'!Q27 -> 0
A57: Off-Site Sediment Contribution (% of Total Load) | B57: =B56/(B55+B56) -> 0
A58: Reduction in Time to Maintenance due to Off-Site Drainage (yr) | B58: ='BMP Design'!U26-'BMP Design'!U28 -> 0
A59: Media Conditions - Infiltration Practice
A60: Underlying Soil Type | B60: ='BMP Design'!G9 -> Sand (HSG A) | C60: =IF(B61>2,"Low",IF(B61<0.75,"High","Moderate")) -> Moderate | D60: This risk factor is identified based on the infiltration rate of the underlying soil. Low infiltration rates of the underlying soil will lead to a lack of system drawdown and if a media layer is used poses a risk to clogging at the interface of the media layer and underlying soil.
A61: Underlying Soil Infiltration Rate (in/hr) | B61: =IF('BMP Design'!B13="",'BMP Design'!B12,'BMP Design'!B13) -> 1.33
A62: Pretreatment
A63: Type of Pretreatment | B63: =IF('BMP Design'!B28="No", "Not Used",'BMP Design'!B29) -> TAPE Pretreatment GULD | C63: =IF(B64>=50,"Low",IF(B64<=20,"High","Moderate")) -> Low | D63: This risk factor is identified based on the removal efficiency of pretreatment. Providing additional pretreatment will reduce the BMP sediment load and reduce clogging risk.
A64: Pretreatment Removal Efficiency (%) | B64: ='BMP Design'!B30*100 -> 50
A65: Vegetation and Location
A66: Is the practice installed at the surface or below grade? | B66: ='BMP Design'!B31 -> Surface | C66: =IF(AND(B66="Surface",B67="Vegetated"),"Low",IF(AND(B66="Surface",B67="Unvegetated"),"Moderate","High")) -> Low | D66: Below grade BMPs are increasingly susceptible to clogging due to confined area of infiltration and restricted maintenance access. Added caution with regards to clogging is recommended when implementing a below grade BMP.
A67: Is the practice vegetated? | B67: ='BMP Design'!B32 -> Vegetated | D67: The presence of vegetation can reduce clogging risk due to the formation of macropores and bioturbation. When feasible surface vegetated BMPs are recommended.
A69: Reference Risk Factor Range Table
A70: Parameter | B70: Risk Range
B71: Low | C71: Moderate | D71: High
A72: Drawdown Time at Initial Infiltration Rate (hr) | B72: < 12 | C72: 12 to 24 | D72: > 24
A73: Drawdown Time at Minimum Allowable Infiltration Rate (hr) | B73: < 24 | C73: 24 to 72 | D73: > 72
A74: Off-Site Sediment Contribution (% of Total Load) | B74: < 5% | C74: 5 to 25% | D74: > 25%
A75: Infiltration Practice, Underlying Soil Infiltration Rate (in/hr) | B75: > 2 | C75: 0.75 to 2.0 | D75: < 0.75
A76: Pretreatment Removal Efficiency (%) | B76: > 50 | C76: 20 to 50 | D76: < 20
A77: Vegetation and Location | B77: Surface Vegetated | C77: Surface Unvegetated | D77: Below Grade Unvegetated

Sheet Graph Parameters (hidden)
A2: Time (yrs) | B2: Applied Load (lbs/ft2) | C2: Time to Maintenance (yrs) | D2: Load to Clog (lbs/ft2) | E2: Time (yrs) | F2: System Infiltration Rate (in/hr) | G2: Time to Maintenance (yrs) | H2: Maintenance Infiltration Rate (in/hr)
A3: 0 | B3: 0 | C3: ='BMP Design'!U28 -> 17.89020358 | D3: ='BMP Design'!T28 -> 1.985630466 | E3: 0 | F3: ='BMP Design'!U11 -> 10 | G3: ='BMP Design'!U28 -> 17.89020358 | H3: ='BMP Design'!U12 -> 0.5
A4: =ROUNDUP(E7,0) -> 22 | B4: ='BMP Design'!$S$28*A4 -> 2.441776029 | E4: ='BMP Design'!AG11/'BMP Design'!$S$28 -> 0 | F4: ='BMP Design'!AF11 -> 10
E5: ='BMP Design'!AG12/'BMP Design'!$S$28 -> 6.953376765 | F5: ='BMP Design'!AF12 -> 2.5
E6: ='BMP Design'!AG13/'BMP Design'!$S$28 -> 13.91132069 | F6: ='BMP Design'!AF13 -> 0.75
E7: ='BMP Design'!AG14/'BMP Design'!$S$28 -> 21.86908647 | F7: ='BMP Design'!AF14 -> 0.25

Sheet Rain Gage Summary (hidden)
A1: Station ID | B1: Climate Division - Rain Gage | C1: State | D1: County | E1: Climate Division | F1: Elevation | G1: 85th Percentile | H1: 95th Percentile | I1: Average Annual | J1: Station ID | K1: Climate Division - Rain Gage
A2: 15550 | B2: [6] PRAIRIE - MONTGOMERY AP ASOS | C2: AL | D2: MONTGOMERY | E2: 6 | F2: 202 | G2: 1.25 | H2: 2.01 | I2: 50.95872655 | J2: 15550 | K2: [6] PRAIRIE - MONTGOMERY AP ASOS
A3: 26481 | B3: [6] SOUTH CENTRAL - PHOENIX AP | C3: AZ | D3: MARICOPA | E3: 6 | F3: 1107 | G3: 0.67 | H3: 1.02 | I3: 7.205657841 | J3: 26481 | K3: [6] SOUTH CENTRAL - PHOENIX AP
A4: 47769 | B4: [4] CENTRAL COAST DRNG. - SAN FRANCISCO WSO AP | C4: CA | D4: SAN MATEO | E4: 4 | F4: 8 | G4: 0.89 | H4: 1.39 | I4: 20.18097096 | J4: 47769 | K4: [4] CENTRAL COAST DRNG. - SAN FRANCISCO WSO AP
A5: 45114 | B5: [6] SOUTH COAST DRNG. - LOS ANGELES INTL AP | C5: CA | D5: LOS ANGELES | E5: 6 | F5: 97 | G5: 1.02 | H5: 1.6 | I5: 12.30515024 | J5: 45114 | K5: [6] SOUTH COAST DRNG. - LOS ANGELES INTL AP
A6: 47740 | B6: [6] SOUTH COAST DRNG. - SAN DIEGO WSO AP | C6: CA | D6: SAN DIEGO | E6: 6 | F6: 15 | G6: 0.78 | H6: 1.25 | I6: 9.795418779 | J6: 47740 | K6: [6] SOUTH COAST DRNG. - SAN DIEGO WSO AP
A7: 85663 | B7: [6] LOWER EAST COAST - MIAMI INTL AP | C7: FL | D7: MIAMI-DADE | E7: 6 | F7: 29 | G7: 1.28 | H7: 2.2 | I7: 58.88374163 | J7: 85663 | K7: [6] LOWER EAST COAST - MIAMI INTL AP
A8: 90451 | B8: [2] NORTH CENTRAL - ATLANTA/MUN., GA. | C8: GA | D8: FULTON | E8: 2 | F8: 1010 | G8: 1.14 | H8: 1.8 | I8: 48.99960863 | J8: 90451 | K8: [2] NORTH CENTRAL - ATLANTA/MUN., GA.
A9: 101022 | B9: [5] SOUTHWESTERN VALLEYS - BOISE AIR TERMINAL | C9: ID | D9: ADA | E9: 5 | F9: 2814 | G9: 0.42 | H9: 0.61 | I9: 11.50454198 | J9: 101022 | K9: [5] SOUTHWESTERN VALLEYS - BOISE AIR TERMINAL
A10: 124259 | B10: [5] CENTRAL - INDIANAPOLIS INTL AP | C10: IN | D10: MARION | E10: 5 | F10: 790 | G10: 0.91 | H10: 1.47 | I10: 40.42782488 | J10: 124259 | K10: [5] CENTRAL - INDIANAPOLIS INTL AP
A11: 132203 | B11: [5] CENTRAL - DES MOINES AP | C11: IA | D11: POLK | E11: 5 | F11: 957 | G11: 0.91 | H11: 1.5 | I11: 32.2614027 | J11: 132203 | K11: [5] CENTRAL - DES MOINES AP
A12: 160549 | B12: [6] EAST CENTRAL - BATON ROUGE METRO AP | C12: LA | D12: EAST BATON ROUGE | E12: 6 | F12: 64 | G12: 1.36 | H12: 2.3 | I12: 57.72441731 | J12: 160549 | K12: [6] EAST CENTRAL - BATON ROUGE METRO AP
A13: 215435 | B13: [6] EAST CENTRAL - MINNEAPOLIS/ST PAUL AP | C13: MN | D13: HENNEPIN | E13: 6 | F13: 872 | G13: 0.8 | H13: 1.33 | I13: 27.72970927 | J13: 215435 | K13: [6] EAST CENTRAL - MINNEAPOLIS/ST PAUL AP
A14: 244055 | B14: [4] CENTRAL - HELENA AP ASOS | C14: MT | D14: LEWIS AND CLARK | E14: 4 | F14: 3828 | G14: 0.45 | H14: 0.73 | I14: 11.03471274 | J14: 244055 | K14: [4] CENTRAL - HELENA AP ASOS
A15: 305811 | B15: [4] COASTAL - NEW YORK LA GUARDIA AP | C15: NY | D15: QUEENS | E15: 4 | F15: 11 | G15: 1 | H15: 1.68 | I15: 43.14266383 | J15: 305811 | K15: [4] COASTAL - NEW YORK LA GUARDIA AP
A16: 300042 | B16: [5] HUDSON VALLEY - ALBANY INTL AP | C16: NY | D16: ALBANY | E16: 5 | F16: 275 | G16: 0.8 | H16: 1.27 | I16: 36.67489814 | J16: 300042 | K16: [5] HUDSON VALLEY - ALBANY INTL AP
A17: 317069 | B17: [4] CENTRAL PIEDMONT - RALEIGH AP | C17: NC | D17: WAKE | E17: 4 | F17: 416 | G17: 0.99 | H17: 1.57 | I17: 42.23054327 | J17: 317069 | K17: [4] CENTRAL PIEDMONT - RALEIGH AP
A18: 320819 | B18: [8] SOUTH CENTRAL - BISMARCK MUNI AP | C18: ND | D18: BURLEIGH | E18: 8 | F18: 1651 | G18: 0.66 | H18: 1.12 | I18: 15.89312939 | J18: 320819 | K18: [8] SOUTH CENTRAL - BISMARCK MUNI AP
A19: 346661 | B19: [5] CENTRAL - OKLAHOMA CITY WILL ROGERS AP | C19: OK | D19: OKLAHOMA | E19: 5 | F19: 1285 | G19: 1.17 | H19: 1.87 | I19: 33.15470281 | J19: 346661 | K19: [5] CENTRAL - OKLAHOMA CITY WILL ROGERS AP
A20: 356751 | B20: [2] WILLAMETTE VALLEY - PORTLAND INTL AP | C20: OR | D20: MULTNOMAH | E20: 2 | F20: 19 | G20: 0.63 | H20: 0.98 | I20: 36.668365 | J20: 356751 | K20: [2] WILLAMETTE VALLEY - PORTLAND INTL AP
A21: 381939 | B21: [6] CENTRAL - COLUMBIA METRO AP | C21: SC | D21: LEXINGTON | E21: 6 | F21: 225 | G21: 1.19 | H21: 1.92 | I21: 45.14910788 | J21: 381939 | K21: [6] CENTRAL - COLUMBIA METRO AP
A22: 406402 | B22: [3] MIDDLE - NASHVILLE ASOS | C22: TN | D22: DAVIDSON | E22: 3 | F22: 600 | G22: 1.05 | H22: 1.75 | I22: 47.79930179 | J22: 406402 | K22: [3] MIDDLE - NASHVILLE ASOS
A23: 412797 | B23: [5] TRANS PECOS - EL PASO AP | C23: TX | D23: EL PASO | E23: 5 | F23: 3918 | G23: 0.6 | H23: 1.04 | I23: 8.472925584 | J23: 412797 | K23: [5] TRANS PECOS - EL PASO AP
A24: 427598 | B24: [3] NORTH CENTRAL - SALT LAKE CITY INTL AP | C24: UT | D24: SALT LAKE | E24: 3 | F24: 4225 | G24: 0.51 | H24: 0.8 | I24: 15.32014541 | J24: 427598 | K24: [3] NORTH CENTRAL - SALT LAKE CITY INTL AP | N24: State | O24: KS
A25: 448906 | B25: [4] NORTHERN - WASHINGTON/NAT., VA. | C25: VA | D25: ARLINGTON | E25: 4 | F25: 10 | G25: 0.94 | H25: 1.5 | I25: 39.59703338 | J25: 448906 | K25: [4] NORTHERN - WASHINGTON/NAT., VA. | L25: Climate Division Filter
A26: 14064 | B26: [1] NORTHERN VALLEY - HUNTSVILLE INTL AP | C26: AL | D26: MADISON | E26: 1 | F26: 624 | G26: 1.24 | H26: 2 | I26: 54.91995799 | J26: 14064 | K26: [1] NORTHERN VALLEY - HUNTSVILLE INTL AP | L26: =VLOOKUP('Project Location'!O11,'Project Location'!Y2:Z51,2,FALSE) -> KS | N26: Row Labels
A27: 10831 | B27: [2] APPALACHIAN MOUNTAIN - BIRMINGHAM AP ASOS | C27: AL | D27: JEFFERSON | E27: 2 | F27: 615 | G27: 1.2 | H27: 1.93 | I27: 45.10310427 | J27: 10831 | K27: [2] APPALACHIAN MOUNTAIN - BIRMINGHAM AP ASOS | N27: [1] NORTHWEST - GOODLAND RENNER FLD
A28: 10063 | B28: [3] UPPER PLAINS - ADDISON | C28: AL | D28: WINSTON | E28: 3 | F28: 818 | G28: 1.3 | H28: 2.1 | I28: 51.2197769 | J28: 10063 | K28: [3] UPPER PLAINS - ADDISON | N28: [2] NORTH CENTRAL - CONCORDIA BLOSSER MUNI
A29: 14209 | B29: [4] EASTERN VALLEY - JACKSONVILLE | C29: AL | D29: CALHOUN | E29: 4 | F29: 688 | G29: 1.2 | H29: 1.92 | I29: 45.63857443 | J29: 14209 | K29: [4] EASTERN VALLEY - JACKSONVILLE | N29: [3] NORTHEAST - HORTON
A30: 12124 | B30: [5] PIEDMONT PLATEAU - DADEVILLE 2 | C30: AL | D30: TALLAPOOSA | E30: 5 | F30: 733 | G30: 1.3 | H30: 2 | I30: 51.70142252 | J30: 12124 | K30: [5] PIEDMONT PLATEAU - DADEVILLE 2 | N30: [4] WEST CENTRAL - COLLYER 10 S
A31: 10140 | B31: [7] COASTAL PLAIN - ALBERTA | C31: AL | D31: WILCOX | E31: 7 | F31: 175 | G31: 1.4 | H31: 2.2 | I31: 55.1672221 | J31: 10140 | K31: [7] COASTAL PLAIN - ALBERTA | N31: [5] CENTRAL - KANOPOLIS LAKE
A32: 15478 | B32: [8] GULF - MOBILE REGIONAL AP | C32: AL | D32: MOBILE | E32: 8 | F32: 215 | G32: 1.45 | H32: 2.42 | I32: 58.61608158 | J32: 15478 | K32: [8] GULF - MOBILE REGIONAL AP | N32: [6] EAST CENTRAL - TOPEKA BILLARD MUNI AP
A33: 24645 | B33: [1] NORTHWEST - KINGMAN #2 | C33: AZ | D33: MOHAVE | E33: 1 | F33: 3539 | G33: 0.8 | H33: 1.2 | I33: 8.999298068 | J33: 24645 | K33: [1] NORTHWEST - KINGMAN #2 | N33: [7] SOUTHWEST - DODGE CITY RGNL AP
A34: 29439 | B34: [2] NORTHEAST - WINSLOW AP | C34: AZ | D34: NAVAJO | E34: 2 | F34: 4886 | G34: 0.48 | H34: 0.75 | I34: 7.281790759 | J34: 29439 | K34: [2] NORTHEAST - WINSLOW AP | N34: [8] SOUTH CENTRAL - WICHITA MID-CONTINENT
A35: 20487 | B35: [3] NORTH CENTRAL - ASH FORK 3 | C35: AZ | D35: YAVAPAI | E35: 3 | F35: 5075 | G35: 0.69 | H35: 1.1 | I35: 12.25519081 | J35: 20487 | K35: [3] NORTH CENTRAL - ASH FORK 3 | N35: [9] SOUTHEAST - CASSODAY 2SW
A36: 26323 | B36: [4] EAST CENTRAL - PAYSON | C36: AZ | D36: GILA | E36: 4 | F36: 4850 | G36: 0.9 | H36: 1.5 | I36: 19.30496698 | J36: 26323 | K36: [4] EAST CENTRAL - PAYSON | N36: Grand Total
A37: 29660 | B37: [5] SOUTHWEST - YUMA WSO AP | C37: AZ | D37: YUMA | E37: 5 | F37: 206 | G37: 0.58 | H37: 1.11 | I37: 2.913379797 | J37: 29660 | K37: [5] SOUTHWEST - YUMA WSO AP
A38: 28820 | B38: [7] SOUTHEAST - TUCSON INTL AP | C38: AZ | D38: PIMA | E38: 7 | F38: 2549 | G38: 0.66 | H38: 1.1 | I38: 11.26192333 | J38: 28820 | K38: [7] SOUTHEAST - TUCSON INTL AP
A39: 32356 | B39: [1] NORTHWEST - EUREKA SPRINGS 3 WNW | C39: AR | D39: CARROLL | E39: 1 | F39: 1420 | G39: 1.2 | H39: 1.91 | I39: 43.16009973 | J39: 32356 | K39: [1] NORTHWEST - EUREKA SPRINGS 3 WNW
A40: 32794 | B40: [2] NORTH CENTRAL - GILBERT | C40: AR | D40: SEARCY | E40: 2 | F40: 620 | G40: 1.18 | H40: 1.95 | I40: 42.91275229 | J40: 32794 | K40: [2] NORTH CENTRAL - GILBERT
A41: 30458 | B41: [3] NORTHEAST - BATESVILLE LVSTK | C41: AR | D41: INDEPENDENCE | E41: 3 | F41: 571 | G41: 1.3 | H41: 2.1 | I41: 45.94652335 | J41: 30458 | K41: [3] NORTHEAST - BATESVILLE LVSTK
A42: 32574 | B42: [4] WEST CENTRAL - FT SMITH RGNL AP | C42: AR | D42: SEBASTIAN | E42: 4 | F42: 449 | G42: 1.2 | H42: 1.92 | I42: 42.34891559 | J42: 32574 | K42: [4] WEST CENTRAL - FT SMITH RGNL AP
A43: 34248 | B43: [5] CENTRAL - LITTLE ROCK ADAMS FLD | C43: AR | D43: PULASKI | E43: 5 | F43: 258 | G43: 1.28 | H43: 2.1 | I43: 29.29232074 | J43: 34248 | K43: [5] CENTRAL - LITTLE ROCK ADAMS FLD
A44: 36920 | B44: [6] EAST CENTRAL - STUTTGART 9 ESE | C44: AR | D44: ARKANSAS | E44: 6 | F44: 198 | G44: 1.3 | H44: 2.2 | I44: 47.83296568 | J44: 36920 | K44: [6] EAST CENTRAL - STUTTGART 9 ESE
A45: 32810 | B45: [7] SOUTHWEST - GILLHAM DAM | C45: AR | D45: POLK | E45: 7 | F45: 520 | G45: 1.5 | H45: 2.4 | I45: 54.29450227 | J45: 32810 | K45: [7] SOUTHWEST - GILLHAM DAM
A46: 30220 | B46: [8] SOUTH CENTRAL - ARKADELPHIA 2 N | C46: AR | D46: CLARK | E46: 8 | F46: 196 | G46: 1.44 | H46: 2.3 | I46: 52.46184763 | J46: 30220 | K46: [8] SOUTH CENTRAL - ARKADELPHIA 2 N
A47: 35754 | B47: [9] SOUTHEAST - PINE BLUFF | C47: AR | D47: JEFFERSON | E47: 9 | F47: 215 | G47: 1.4 | H47: 2.2 | I47: 49.28084792 | J47: 35754 | K47: [9] SOUTHEAST - PINE BLUFF
A48: 42910 | B48: [1] NORTH COAST DRAINAGE - EUREKA WFO WOODLEY IS | C48: CA | D48: HUMBOLDT | E48: 1 | F48: 20 | G48: 0.88 | H48: 1.37 | I48: 39.21705128 | J48: 42910 | K48: [1] NORTH COAST DRAINAGE - EUREKA WFO WOODLEY IS
A49: 40161 | B49: [2] SACRAMENTO DRNG. - ALTURAS | C49: CA | D49: MODOC | E49: 2 | F49: 4400 | G49: 0.5 | H49: 0.72 | I49: 12.32358798 | J49: 40161 | K49: [2] SACRAMENTO DRNG. - ALTURAS
A50: 48873 | B50: [3] NORTHEAST INTER. BASINS - TERMO 1 E | C50: CA | D50: LASSEN | E50: 3 | F50: 5300 | G50: 0.49 | H50: 0.8 | I50: 10.03302054 | J50: 48873 | K50: [3] NORTHEAST INTER. BASINS - TERMO 1 E
A51: 43257 | B51: [5] SAN JOAQUIN DRNG. - FRESNO YOSEMITE INT'L | C51: CA | D51: FRESNO | E51: 5 | F51: 333 | G51: 0.68 | H51: 0.97 | I51: 10.9055695 | J51: 43257 | K51: [5] SAN JOAQUIN DRNG. - FRESNO YOSEMITE INT'L
A52: 44232 | B52: [7] SOUTHEAST DESERT BASIN - INDEPENDENCE | C52: CA | D52: INYO | E52: 7 | F52: 3950 | G52: 0.7 | H52: 1.3 | I52: 4.839608514 | J52: 44232 | K52: [7] SOUTHEAST DESERT BASIN - INDEPENDENCE
A53: 53477 | B53: [1] ARKANSAS DRAINAGE BASIN - GRANADA | C53: CO | D53: PROWERS | E53: 1 | F53: 3484 | G53: 0.8 | H53: 1.4 | I53: 14.59144374 | J53: 53477 | K53: [1] ARKANSAS DRAINAGE BASIN - GRANADA
A54: 53488 | B54: [2] COLORADO DRAINAGE BASIN - GRAND JUNCTION WALKER | C54: CO | D54: MESA | E54: 2 | F54: 4858 | G54: 0.42 | H54: 0.61 | I54: 8.467588747 | J54: 53488 | K54: [2] COLORADO DRAINAGE BASIN - GRAND JUNCTION WALKER
A55: 50304 | B55: [3] KANSAS DRAINAGE BASIN - ARAPAHOE | C55: CO | D55: CHEYENNE | E55: 3 | F55: 4020 | G55: 0.8 | H55: 1.3 | I55: 15.48861886 | J55: 50304 | K55: [3] KANSAS DRAINAGE BASIN - ARAPAHOE
A56: 51179 | B56: [4] PLATTE DRAINAGE BASIN - BYERS 5 ENE | C56: CO | D56: ADAMS | E56: 4 | F56: 5100 | G56: 0.7 | H56: 1.2 | I56: 14.50199732 | J56: 51179 | K56: [4] PLATTE DRAINAGE BASIN - BYERS 5 ENE
A57: 57337 | B57: [5] RIO GRANDE DRAINAGE BASIN - SAGUACHE | C57: CO | D57: SAGUACHE | E57: 5 | F57: 7701 | G57: 0.44 | H57: 0.64 | I57: 8.082028391 | J57: 57337 | K57: [5] RIO GRANDE DRAINAGE BASIN - SAGUACHE
A58: 65445 | B58: [1] NORTHWEST - NORFOLK 2 SW | C58: CT | D58: LITCHFIELD | E58: 1 | F58: 1340 | G58: 1.04 | H58: 1.69 | I58: 50.75400247 | J58: 65445 | K58: [1] NORTHWEST - NORFOLK 2 SW
A59: 63456 | B59: [2] CENTRAL - HARTFORD | C59: CT | D59: HARTFORD | E59: 2 | F59: 190 | G59: 1.01 | H59: 1.6 | I59: 44.90737806 | J59: 63456 | K59: [2] CENTRAL - HARTFORD
A60: 60806 | B60: [3] COASTAL - BRIDGEPORT SIKORSKY AP | C60: CT | D60: FAIRFIELD | E60: 3 | F60: 5 | G60: 0.96 | H60: 1.6 | I60: 41.71948633 | J60: 60806 | K60: [3] COASTAL - BRIDGEPORT SIKORSKY AP
A61: 79595 | B61: [1] NORTHERN - WILMINGTON NEW CASTLE | C61: DE | D61: NEW CASTLE | E61: 1 | F61: 79 | G61: 0.99 | H61: 1.62 | I61: 37.71065626 | J61: 79595 | K61: [1] NORTHERN - WILMINGTON NEW CASTLE
A62: 73570 | B62: [2] SOUTHERN - GEORGETOWN 5 SW | C62: DE | D62: SUSSEX | E62: 2 | F62: 45 | G62: 1.1 | H62: 1.7 | I62: 40.02924583 | J62: 73570 | K62: [2] SOUTHERN - GEORGETOWN 5 SW
A63: 80211 | B63: [1] NORTHWEST - APALACHICOLA AP | C63: FL | D63: FRANKLIN | E63: 1 | F63: 20 | G63: 1.4 | H63: 2.39 | I63: 54.87223743 | J63: 80211 | K63: [1] NORTHWEST - APALACHICOLA AP | M63: # of Climate Divisions
A64: 80975 | B64: [2] NORTH - BRANFORD | C64: FL | D64: SUWANNEE | E64: 2 | F64: 30 | G64: 1.29 | H64: 2.2 | I64: 25.83581789 | J64: 80975 | K64: [2] NORTH - BRANFORD | M64: =COUNTA(N27:N62)-1 -> 9
A65: 82158 | B65: [3] NORTH CENTRAL - DAYTONA BEACH INTL AP | C65: FL | D65: VOLUSIA | E65: 3 | F65: 31 | G65: 1.2 | H65: 2.03 | I65: 49.0758504 | J65: 82158 | K65: [3] NORTH CENTRAL - DAYTONA BEACH INTL AP
A66: 85612 | B66: [4] SOUTH CENTRAL - MELBOURNE WFO | C66: FL | D66: BREVARD | E66: 4 | F66: 35 | G66: 1.3 | H66: 2.1 | I66: 48.07370461 | J66: 85612 | K66: [4] SOUTH CENTRAL - MELBOURNE WFO
A67: 83186 | B67: [5] EVERGLADES - FT MYERS PAGE FLD AP | C67: FL | D67: LEE | E67: 5 | F67: 15 | G67: 1.4 | H67: 2.3 | I67: 54.85663636 | J67: 83186 | K67: [5] EVERGLADES - FT MYERS PAGE FLD AP
B68: [7] KEYS - KEY WEST INTL AP | K68: [7] KEYS - KEY WEST INTL AP
A69: 92485 | B69: [1] NORTHWEST - DALLAS 7 NE | C69: GA | D69: PAULDING | E69: 1 | F69: 1100 | G69: 1.2 | H69: 1.98 | I69: 49.32596977 | J69: 92485 | K69: [1] NORTHWEST - DALLAS 7 NE
A70: 91619 | B70: [3] NORTHEAST - CARNESVILLE 4 N | C70: GA | D70: FRANKLIN | E70: 3 | F70: 866 | G70: 1.28 | H70: 1.95 | I70: 46.60810878 | J70: 91619 | K70: [3] NORTHEAST - CARNESVILLE 4 N
A71: 92166 | B71: [4] WEST CENTRAL - COLUMBUS METO AP | C71: GA | D71: MUSCOGEE | E71: 4 | F71: 392 | G71: 1.18 | H71: 1.9 | I71: 48.75544882 | J71: 92166 | K71: [4] WEST CENTRAL - COLUMBUS METO AP
A72: 95443 | B72: [5] CENTRAL - MACON MIDDLE GA AP | C72: GA | D72: BIBB | E72: 5 | F72: 343 | G72: 1.13 | H72: 1.86 | I72: 44.7604157 | J72: 95443 | K72: [5] CENTRAL - MACON MIDDLE GA AP
A73: 90495 | B73: [6] EAST CENTRAL - AUGUSTA BUSH FLD AP | C73: GA | D73: RICHMOND | E73: 6 | F73: 132 | G73: 1.1 | H73: 1.77 | I73: 43.40544461 | J73: 90495 | K73: [6] EAST CENTRAL - AUGUSTA BUSH FLD AP
A74: 93028 | B74: [7] SOUTHWEST - EDISON | C74: GA | D74: CALHOUN | E74: 7 | F74: 294 | G74: 1.3 | H74: 2.15 | I74: 48.33854881 | J74: 93028 | K74: [7] SOUTHWEST - EDISON
A75: 96879 | B75: [8] SOUTH CENTRAL - PEARSON | C75: GA | D75: ATKINSON | E75: 8 | F75: 205 | G75: 1.29 | H75: 2 | I75: 46.51146819 | J75: 96879 | K75: [8] SOUTH CENTRAL - PEARSON
A76: 97847 | B76: [9] SOUTHEAST - SAVANNAH INTL AP | C76: GA | D76: CHATHAM | E76: 9 | F76: 46 | G76: 1.18 | H76: 1.95 | I76: 48.81084705 | J76: 97847 | K76: [9] SOUTHEAST - SAVANNAH INTL AP
A77: 101079 | B77: [1] PANHANDLE - BONNERS FERRY | C77: ID | D77: BOUNDARY | E77: 1 | F77: 2075 | G77: 0.59 | H77: 0.9 | I77: 23.28528983 | J77: 101079 | K77: [1] PANHANDLE - BONNERS FERRY
A78: 105241 | B78: [3] NORTH CENTRAL PRAIRIES - LEWISTON AP | C78: ID | D78: NEZ PERCE | E78: 3 | F78: 1436 | G78: 0.41 | H78: 0.62 | I78: 12.05414158 | J78: 105241 | K78: [3] NORTH CENTRAL PRAIRIES - LEWISTON AP
A79: 103143 | B79: [3] NORTH CENTRAL CANYONS - FENN RS | C79: ID | D79: IDAHO | E79: 3 | F79: 1560 | G79: 0.68 | H79: 1 | I79: 36.40611844 | J79: 103143 | K79: [3] NORTH CENTRAL CANYONS - FENN RS
A80: 107327 | B80: [4] CENTRAL MOUNTAINS - PRAIRIE | C80: ID | D80: ELMORE | E80: 4 | F80: 4780 | G80: 0.68 | H80: 1.05 | I80: 22.16674041 | J80: 107327 | K80: [4] CENTRAL MOUNTAINS - PRAIRIE
A81: 103811 | B81: [6] SOUTHWESTERN HIGHLANDS - GRASMERE 3 S | C81: ID | D81: OWYHEE | E81: 6 | F81: 5140 | G81: 0.5 | H81: 0.8 | I81: 10.92233116 | J81: 103811 | K81: [6] SOUTHWESTERN HIGHLANDS - GRASMERE 3 S
A82: 103677 | B82: [7] CENTRAL PLAINS - GOODING 1 S | C82: ID | D82: GOODING | E82: 7 | F82: 3643 | G82: 0.5 | H82: 0.8 | I82: 10.30963655 | J82: 103677 | K82: [7] CENTRAL PLAINS - GOODING 1 S
A83: 105169 | B83: [8] NORTHEASTERN VALLEYS - LEADORE | C83: ID | D83: LEMHI | E83: 8 | F83: 6000 | G83: 0.4 | H83: 0.6 | I83: 8.473901245 | J83: 105169 | K83: [8] NORTHEASTERN VALLEYS - LEADORE
A84: 107211 | B84: [9] UPPER SNAKE RIVER PLAINS - POCATELLO RGNL AP | C84: ID | D84: POWER | E84: 9 | F84: 4478 | G84: 0.42 | H84: 0.63 | I84: 11.20820082 | J84: 107211 | K84: [9] UPPER SNAKE RIVER PLAINS - POCATELLO RGNL AP
A85: 104456 | B85: [10] EASTERN HIGHLANDS - IDAHO FALLS 16 SE | C85: ID | D85: BONNEVILLE | E85: 10 | F85: 5828 | G85: 0.5 | H85: 0.7 | I85: 16.42038998 | J85: 104456 | K85: [10] EASTERN HIGHLANDS - IDAHO FALLS 16 SE
A86: 115751 | B86: [1] NORTHWEST - MOLINE WSO AP | C86: IL | D86: ROCK ISLAND | E86: 1 | F86: 592 | G86: 0.96 | H86: 1.56 | I86: 36.94095548 | J86: 115751 | K86: [1] NORTHWEST - MOLINE WSO AP
A87: 111577 | B87: [2] NORTHEAST - CHICAGO MIDWAY AP 3SW | C87: IL | D87: COOK | E87: 2 | F87: 620 | G87: 0.9 | H87: 1.5 | I87: 36.36341442 | J87: 111577 | K87: [2] NORTHEAST - CHICAGO MIDWAY AP 3SW
A88: 110082 | B88: [3] WEST - ALEXIS 1 SW | C88: IL | D88: WARREN | E88: 3 | F88: 680 | G88: 0.97 | H88: 1.6 | I88: 33.23871554 | J88: 110082 | K88: [3] WEST - ALEXIS 1 SW
A89: 116711 | B89: [4] CENTRAL - PEORIA GTR PEORIA RGNL | C89: IL | D89: PEORIA | E89: 4 | F89: 650 | G89: 0.93 | H89: 1.47 | I89: 35.29861786 | J89: 116711 | K89: [4] CENTRAL - PEORIA GTR PEORIA RGNL
A90: 114198 | B90: [5] EAST - HOOPESTON 1NE | C90: IL | D90: VERMILION | E90: 5 | F90: 710 | G90: 0.9 | H90: 1.5 | I90: 36.11608242 | J90: 114198 | K90: [5] EAST - HOOPESTON 1NE
A91: 118179 | B91: [6] WEST SOUTHWEST - SPRINGFIELD LINCOLN AP | C91: IL | D91: SANGAMON | E91: 6 | F91: 594 | G91: 0.9 | H91: 1.47 | I91: 34.92312681 | J91: 118179 | K91: [6] WEST SOUTHWEST - SPRINGFIELD LINCOLN AP
A92: 116159 | B92: [7] EAST SOUTHEAST - NEWTON 6 SSE | C92: IL | D92: JASPER | E92: 7 | F92: 510 | G92: 1 | H92: 1.6 | I92: 39.71020639 | J92: 116159 | K92: [7] EAST SOUTHEAST - NEWTON 6 SSE
A93: 115983 | B93: [8] SOUTHWEST - MURPHYSBORO 2 SW | C93: IL | D93: JACKSON | E93: 8 | F93: 550 | G93: 1.1 | H93: 1.74 | I93: 43.9282036 | J93: 115983 | K93: [8] SOUTHWEST - MURPHYSBORO 2 SW
A94: 112353 | B94: [9] SOUTHEAST - DIXON SPRINGS AG CTR | C94: IL | D94: POPE | E94: 9 | F94: 527 | G94: 1.15 | H94: 1.82 | I94: 45.80505836 | J94: 112353 | K94: [9] SOUTHEAST - DIXON SPRINGS AG CTR
A95: 125535 | B95: [1] NORTHWEST - MEDARYVILLE 5 N | C95: IN | D95: PULASKI | E95: 1 | F95: 695 | G95: 0.9 | H95: 1.5 | I95: 36.24643589 | J95: 125535 | K95: [1] NORTHWEST - MEDARYVILLE 5 N
A96: 128187 | B96: [2] NORTH CENTRAL - SOUTH BEND AP | C96: IN | D96: ST. JOSEPH | E96: 2 | F96: 773 | G96: 0.8 | H96: 1.33 | I96: 37.66742095 | J96: 128187 | K96: [2] NORTH CENTRAL - SOUTH BEND AP
A97: 123037 | B97: [3] NORTHEAST - FORT WAYNE AP | C97: IN | D97: ALLEN | E97: 3 | F97: 791 | G97: 0.82 | H97: 1.3 | I97: 36.53760494 | J97: 123037 | K97: [3] NORTHEAST - FORT WAYNE AP
A98: 120922 | B98: [4] WEST CENTRAL - BRAZIL | C98: IN | D98: CLAY | E98: 4 | F98: 680 | G98: 1 | H98: 1.61 | I98: 41.67705059 | J98: 120922 | K98: [4] WEST CENTRAL - BRAZIL
A99: 120132 | B99: [6] EAST CENTRAL - ALPINE 2 NE | C99: IN | D99: FAYETTE | E99: 6 | F99: 850 | G99: 0.92 | H99: 1.46 | I99: 41.05639212 | J99: 120132 | K99: [6] EAST CENTRAL - ALPINE 2 NE
A100: 122738 | B100: [7] SOUTHWEST - EVANSVILLE REGIONAL AP | C100: IN | D100: VANDERBURGH | E100: 7 | F100: 400 | G100: 1.03 | H100: 1.7 | I100: 43.95275952 | J100: 122738 | K100: [7] SOUTHWEST - EVANSVILLE REGIONAL AP
A101: 126580 | B101: [8] SOUTH CENTRAL - OOLITIC PURDUE EX FRM | C101: IN | D101: LAWRENCE | E101: 8 | F101: 650 | G101: 1.05 | H101: 1.6 | I101: 43.56708539 | J101: 126580 | K101: [8] SOUTH CENTRAL - OOLITIC PURDUE EX FRM
A102: 120482 | B102: [9] SOUTHEAST - BATESVILLE WTR WKS | C102: IN | D102: RIPLEY | E102: 9 | F102: 970 | G102: 1 | H102: 1.5 | I102: 43.42327627 | J102: 120482 | K102: [9] SOUTHEAST - BATESVILLE WTR WKS
A103: 136975 | B103: [1] NORTHWEST - REMSEN | C103: IA | D103: PLYMOUTH | E103: 1 | F103: 1330 | G103: 0.97 | H103: 1.5 | I103: 28.14272723 | J103: 136975 | K103: [1] NORTHWEST - REMSEN
A104: 137602 | B104: [2] NORTH CENTRAL - SHELL ROCK | C104: IA | D104: BUTLER | E104: 2 | F104: 912 | G104: 0.92 | H104: 1.5 | I104: 30.49484019 | J104: 137602 | K104: [2] NORTH CENTRAL - SHELL ROCK
A105: 138009 | B105: [3] NORTHEAST - STRAWBERRY POINT | C105: IA | D105: CLAYTON | E105: 3 | F105: 1200 | G105: 0.93 | H105: 1.52 | I105: 34.40964091 | J105: 138009 | K105: [3] NORTHEAST - STRAWBERRY POINT
A106: 137708 | B106: [4] WEST CENTRAL - SIOUX CITY AP | C106: IA | D106: WOODBURY | E106: 4 | F106: 1095 | G106: 0.87 | H106: 1.35 | I106: 25.88691256 | J106: 137708 | K106: [4] WEST CENTRAL - SIOUX CITY AP
A107: 130608 | B107: [6] EAST CENTRAL - BELLEVUE L&D 12 | C107: IA | D107: JACKSON | E107: 6 | F107: 603 | G107: 0.98 | H107: 1.54 | I107: 33.08087328 | J107: 130608 | K107: [6] EAST CENTRAL - BELLEVUE L&D 12
A108: 131245 | B108: [7] SOUTHWEST - CARSON 3NNE | C108: IA | D108: POTTAWATTAMIE | E108: 7 | F108: 1090 | G108: 1.06 | H108: 1.86 | I108: 32.72117172 | J108: 131245 | K108: [7] SOUTHWEST - CARSON 3NNE
A109: 132195 | B109: [8] SOUTH CENTRAL - DERBY | C109: IA | D109: LUCAS | E109: 8 | F109: 1190 | G109: 1 | H109: 1.63 | I109: 34.18372825 | J109: 132195 | K109: [8] SOUTH CENTRAL - DERBY
A110: 138688 | B110: [9] SOUTHEAST - WASHINGTON | C110: IA | D110: WASHINGTON | E110: 9 | F110: 690 | G110: 1 | H110: 1.6 | I110: 33.87536571 | J110: 138688 | K110: [9] SOUTHEAST - WASHINGTON
A111: 143153 | B111: [1] NORTHWEST - GOODLAND RENNER FLD | C111: KS | D111: SHERMAN | E111: 1 | F111: 3656 | G111: 0.74 | H111: 1.27 | I111: 17.50321145 | J111: 143153 | K111: [1] NORTHWEST - GOODLAND RENNER FLD
A112: 141767 | B112: [2] NORTH CENTRAL - CONCORDIA BLOSSER MUNI | C112: KS | D112: CLOUD | E112: 2 | F112: 1469 | G112: 0.97 | H112: 1.6 | I112: 27.4605794 | J112: 141767 | K112: [2] NORTH CENTRAL - CONCORDIA BLOSSER MUNI
A113: 143810 | B113: [3] NORTHEAST - HORTON | C113: KS | D113: BROWN | E113: 3 | F113: 1030 | G113: 1.1 | H113: 1.9 | I113: 35.44440587 | J113: 143810 | K113: [3] NORTHEAST - HORTON
A114: 141730 | B114: [4] WEST CENTRAL - COLLYER 10 S | C114: KS | D114: TREGO | E114: 4 | F114: 2407 | G114: 0.9 | H114: 1.4 | I114: 19.79478996 | J114: 141730 | K114: [4] WEST CENTRAL - COLLYER 10 S
A115: 144178 | B115: [5] CENTRAL - KANOPOLIS LAKE | C115: KS | D115: ELLSWORTH | E115: 5 | F115: 1492 | G115: 1.07 | H115: 1.7 | I115: 25.54246554 | J115: 144178 | K115: [5] CENTRAL - KANOPOLIS LAKE
A116: 148167 | B116: [6] EAST CENTRAL - TOPEKA BILLARD MUNI AP | C116: KS | D116: SHAWNEE | E116: 6 | F116: 881 | G116: 1.07 | H116: 1.78 | I116: 34.70720579 | J116: 148167 | K116: [6] EAST CENTRAL - TOPEKA BILLARD MUNI AP
A117: 142164 | B117: [7] SOUTHWEST - DODGE CITY RGNL AP | C117: KS | D117: FORD | E117: 7 | F117: 2582 | G117: 0.86 | H117: 1.44 | I117: 20.5420711 | J117: 142164 | K117: [7] SOUTHWEST - DODGE CITY RGNL AP
A118: 148830 | B118: [8] SOUTH CENTRAL - WICHITA MID-CONTINENT | C118: KS | D118: SEDGWICK | E118: 8 | F118: 1321 | G118: 1.1 | H118: 1.76 | I118: 30.23109038 | J118: 148830 | K118: [8] SOUTH CENTRAL - WICHITA MID-CONTINENT
A119: 141351 | B119: [9] SOUTHEAST - CASSODAY 2SW | C119: KS | D119: BUTLER | E119: 9 | F119: 1440 | G119: 1.15 | H119: 1.8 | I119: 32.17986941 | J119: 141351 | K119: [9] SOUTHEAST - CASSODAY 2SW
A120: 151631 | B120: [1] WESTERN - CLINTON 4 S | C120: KY | D120: HICKMAN | E120: 1 | F120: 350 | G120: 1.2 | H120: 1.9 | I120: 46.52415759 | J120: 151631 | K120: [1] WESTERN - CLINTON 4 S
A121: 154954 | B121: [2] CENTRAL - LOUISVILLE INTL AP | C121: KY | D121: JEFFERSON | E121: 2 | F121: 488 | G121: 0.95 | H121: 1.51 | I121: 43.87584067 | J121: 154954 | K121: [2] CENTRAL - LOUISVILLE INTL AP
A122: 154746 | B122: [3] BLUE GRASS - LEXINGTON BLUEGRASS AP | C122: KY | D122: FAYETTE | E122: 3 | F122: 980 | G122: 0.94 | H122: 1.5 | I122: 45.45680717 | J122: 154746 | K122: [3] BLUE GRASS - LEXINGTON BLUEGRASS AP
A123: 151080 | B123: [4] EASTERN - BUCKHORN LAKE | C123: KY | D123: PERRY | E123: 4 | F123: 780 | G123: 0.9 | H123: 1.44 | I123: 45.84906597 | J123: 151080 | K123: [4] EASTERN - BUCKHORN LAKE
A124: 168440 | B124: [1] NORTHWEST - SHREVEPORT AP | C124: LA | D124: CADDO | E124: 1 | F124: 254 | G124: 1.32 | H124: 2.16 | I124: 42.45229315 | J124: 168440 | K124: [1] NORTHWEST - SHREVEPORT AP
A125: 169803 | B125: [2] NORTH CENTRAL - WINNFIELD 3 N | C125: LA | D125: WINN | E125: 2 | F125: 160 | G125: 1.4 | H125: 2.3 | I125: 55.9953092 | J125: 169803 | K125: [2] NORTH CENTRAL - WINNFIELD 3 N
A126: 169806 | B126: [3] NORTHEAST - WINNSBORO 5 SSE | C126: LA | D126: FRANKLIN | E126: 3 | F126: 80 | G126: 1.46 | H126: 2.3 | I126: 53.98896224 | J126: 169806 | K126: [3] NORTHEAST - WINNSBORO 5 SSE
A127: 165266 | B127: [4] WEST CENTRAL - LEESVILLE | C127: LA | D127: VERNON | E127: 4 | F127: 28 | G127: 1.4 | H127: 2.4 | I127: 52.83658504 | J127: 165266 | K127: [4] WEST CENTRAL - LEESVILLE
A128: 169357 | B128: [5] CENTRAL - VIDALIA #2 | C128: LA | D128: CONCORDIA | E128: 5 | F128: 60 | G128: 1.5 | H128: 2.55 | I128: 54.45550894 | J128: 169357 | K128: [5] CENTRAL - VIDALIA #2
A129: 165078 | B129: [7] SOUTHWEST - LAKE CHARLES AP | C129: LA | D129: CALCASIEU | E129: 7 | F129: 9 | G129: 1.47 | H129: 2.55 | I129: 55.64743526 | J129: 165078 | K129: [7] SOUTHWEST - LAKE CHARLES AP
A130: 165021 | B130: [8] SOUTH CENTRAL - LAFAYETTE | C130: LA | D130: LAFAYETTE | E130: 8 | F130: 25 | G130: 1.5 | H130: 2.7 | I130: 60.28362345 | J130: 165021 | K130: [8] SOUTH CENTRAL - LAFAYETTE
A131: 166660 | B131: [9] SOUTHEAST - NEW ORLEANS AP | C131: LA | D131: JEFFERSON | E131: 9 | F131: 4 | G131: 1.44 | H131: 2.4 | I131: 61.29518364 | J131: 166660 | K131: [9] SOUTHEAST - NEW ORLEANS AP
A132: 171175 | B132: [1] NORTHERN - CARIBOU WFO | C132: ME | D132: AROOSTOOK | E132: 1 | F132: 624 | G132: 0.7 | H132: 1.06 | I132: 36.99961294 | J132: 171175 | K132: [1] NORTHERN - CARIBOU WFO
A133: 178641 | B133: [2] SOUTHERN INTERIOR - SWANS FALLS | C133: ME | D133: OXFORD | E133: 2 | F133: 400 | G133: 1 | H133: 1.6 | I133: 43.13902062 | J133: 178641 | K133: [2] SOUTHERN INTERIOR - SWANS FALLS
A134: 176905 | B134: [3] COASTAL - PORTLAND JETPORT | C134: ME | D134: CUMBERLAND | E134: 3 | F134: 45 | G134: 0.97 | H134: 1.62 | I134: 43.69530127 | J134: 176905 | K134: [3] COASTAL - PORTLAND JETPORT
A135: 188005 | B135: [1] SOUTHEASTERN SHORE - SALISBURY FAA AP | C135: MD | D135: WICOMICO | E135: 1 | F135: 48 | G135: 0.92 | H135: 1.86 | I135: 44.14267463 | J135: 188005 | K135: [1] SOUTHEASTERN SHORE - SALISBURY FAA AP
A136: 183090 | B136: [2] CENTRAL EASTERN SHORE - FEDERALSBURG | C136: MD | D136: CAROLINE | E136: 2 | F136: 20 | G136: 1.1 | H136: 1.9 | I136: 43.77162908 | J136: 183090 | K136: [2] CENTRAL EASTERN SHORE - FEDERALSBURG
A137: 186915 | B137: [3] LOWER SOUTHERN - PATUXENT RIVER | C137: MD | D137: ST. MARY'S | E137: 3 | F137: 38 | G137: 1.1 | H137: 2 | I137: 14.32034464 | J137: 186915 | K137: [3] LOWER SOUTHERN - PATUXENT RIVER
A138: 180465 | B138: [4] UPPER SOUTHERN - BALTIMORE WASH INTL AP | C138: MD | D138: ANNE ARUNDEL | E138: 4 | F138: 156 | G138: 0.99 | H138: 1.62 | I138: 41.65482839 | J138: 180465 | K138: [4] UPPER SOUTHERN - BALTIMORE WASH INTL AP
A139: 180470 | B139: [6] NORTHERN CENTRAL - BALTIMORE CITY | C139: MD | D139: BALTIMORE (CITY) | E139: 6 | F139: 14 | G139: 1.05 | H139: 1.72 | I139: 41.18351763 | J139: 180470 | K139: [6] NORTHERN CENTRAL - BALTIMORE CITY
A140: 184030 | B140: [7] APPALACHIAN MOUNTAIN - HANCOCK | C140: MD | D140: WASHINGTON | E140: 7 | F140: 384 | G140: 0.9 | H140: 1.3 | I140: 34.39961687 | J140: 184030 | K140: [7] APPALACHIAN MOUNTAIN - HANCOCK
A141: 188315 | B141: [8] ALLEGHENY PLATEAU - SINES DEEP CREEK | C141: MD | D141: GARRETT | E141: 8 | F141: 2040 | G141: 0.74 | H141: 1.16 | I141: 46.94134707 | J141: 188315 | K141: [8] ALLEGHENY PLATEAU - SINES DEEP CREEK
A142: 193985 | B142: [1] WESTERN - KNIGHTVILLE DAM | C142: MA | D142: HAMPSHIRE | E142: 1 | F142: 630 | G142: 1 | H142: 1.68 | I142: 44.48045636 | J142: 193985 | K142: [1] WESTERN - KNIGHTVILLE DAM
A143: 190736 | B143: [2] CENTRAL - BLUE HILL | C143: MA | D143: NORFOLK | E143: 2 | F143: 625 | G143: 1.08 | H143: 1.75 | I143: 50.20985588 | J143: 190736 | K143: [2] CENTRAL - BLUE HILL
A144: 190770 | B144: [3] COASTAL - BOSTON | C144: MA | D144: SUFFOLK | E144: 3 | F144: 12 | G144: 0.96 | H144: 1.57 | I144: 43.07275554 | J144: 190770 | K144: [3] COASTAL - BOSTON
A145: 204090 | B145: [1] WEST UPPER - IRON MT KINGSFORD WWTP | C145: MI | D145: DICKINSON | E145: 1 | F145: 1071 | G145: 0.79 | H145: 1.2 | I145: 28.26646925 | J145: 204090 | K145: [1] WEST UPPER - IRON MT KINGSFORD WWTP
A146: 207366 | B146: [2] EAST UPPER - SAULT STE MARIE SNDRSN | C146: MI | D146: CHIPPEWA | E146: 2 | F146: 722 | G146: 0.62 | H146: 1.02 | I146: 32.60137184 | J146: 207366 | K146: [2] EAST UPPER - SAULT STE MARIE SNDRSN
A147: 200662 | B147: [3] NORTHWEST - BELLAIRE | C147: MI | D147: ANTRIM | E147: 3 | F147: 625 | G147: 0.7 | H147: 1.1 | I147: 31.16371514 | J147: 200662 | K147: [3] NORTHWEST - BELLAIRE
A148: 200164 | B148: [4] NORTHEAST LOWER - ALPENA CO RGNL AP | C148: MI | D148: ALPENA | E148: 4 | F148: 684 | G148: 0.66 | H148: 1.04 | I148: 27.69866563 | J148: 200164 | K148: [4] NORTHEAST LOWER - ALPENA CO RGNL AP
A149: 205712 | B149: [5] WEST CENTRAL LOWER - MUSKEGON CO AP | C149: MI | D149: MUSKEGON | E149: 5 | F149: 625 | G149: 0.71 | H149: 1.15 | I149: 32.08184542 | J149: 205712 | K149: [5] WEST CENTRAL LOWER - MUSKEGON CO AP
A150: 203170 | B150: [6] CENTRAL LOWER - GLADWIN | C150: MI | D150: GLADWIN | E150: 6 | F150: 775 | G150: 0.8 | H150: 1.4 | I150: 18.30286933 | J150: 203170 | K150: [6] CENTRAL LOWER - GLADWIN
A151: 203580 | B151: [7] EAST CENTRAL LOWER - HARBOR BEACH | C151: MI | D151: HURON | E151: 7 | F151: 600 | G151: 0.7 | H151: 1.1 | I151: 29.47347002 | J151: 203580 | K151: [7] EAST CENTRAL LOWER - HARBOR BEACH
A152: 203333 | B152: [8] SOUTHWEST LOWER - GERALD R FORD INTL AP | C152: MI | D152: KENT | E152: 8 | F152: 803 | G152: 0.82 | H152: 1.33 | I152: 35.82094773 | J152: 203333 | K152: [8] SOUTHWEST LOWER - GERALD R FORD INTL AP
A153: 204155 | B153: [9] SOUTH CENTRAL LOWER - JACKSON 3N | C153: MI | D153: JACKSON | E153: 9 | F153: 950 | G153: 0.8 | H153: 1.26 | I153: 30.62163281 | J153: 204155 | K153: [9] SOUTH CENTRAL LOWER - JACKSON 3N
A154: 202846 | B154: [10] SOUTHEAST LOWER - FLINT BISHOP INTL AP | C154: MI | D154: GENESEE | E154: 10 | F154: 770 | G154: 0.71 | H154: 1.16 | I154: 26.23470647 | J154: 202846 | K154: [10] SOUTHEAST LOWER - FLINT BISHOP INTL AP
A155: 218235 | B155: [1] NORTHWEST - THIEF LAKE REFUGE | C155: MN | D155: MARSHALL | E155: 1 | F155: 1142 | G155: 0.8 | H155: 1.3 | I155: 23.16941477 | J155: 218235 | K155: [1] NORTHWEST - THIEF LAKE REFUGE
A156: 214026 | B156: [2] NORTH CENTRAL - INTERNATIONAL FALLS AP | C156: MN | D156: KOOCHICHING | E156: 2 | F156: 1183 | G156: 0.68 | H156: 1.14 | I156: 24.33325871 | J156: 214026 | K156: [2] NORTH CENTRAL - INTERNATIONAL FALLS AP
A157: 212248 | B157: [3] NORTHEAST - DULUTH INTL AP | C157: MN | D157: ST. LOUIS | E157: 3 | F157: 1433 | G157: 0.79 | H157: 1.31 | I157: 29.44294091 | J157: 212248 | K157: [3] NORTHEAST - DULUTH INTL AP
A158: 210112 | B158: [4] WEST CENTRAL - ALEXANDRIA CHANDLER FLD | C158: MN | D158: DOUGLAS | E158: 4 | F158: 1416 | G158: 0.83 | H158: 1.31 | I158: 11.11612755 | J158: 210112 | K158: [4] WEST CENTRAL - ALEXANDRIA CHANDLER FLD
A159: 217294 | B159: [5] CENTRAL - ST CLOUD MUNI AP | C159: MN | D159: SHERBURNE | E159: 5 | F159: 1018 | G159: 0.83 | H159: 1.39 | I159: 26.68599622 | J159: 217294 | K159: [5] CENTRAL - ST CLOUD MUNI AP
A160: 218323 | B160: [7] SOUTHWEST - TRACY | C160: MN | D160: LYON | E160: 7 | F160: 1403 | G160: 0.9 | H160: 1.4 | I160: 25.17127938 | J160: 218323 | K160: [7] SOUTHWEST - TRACY
A161: 215987 | B161: [8] SOUTH CENTRAL - NORTHFIELD 2 NNE | C161: MN | D161: DAKOTA | E161: 8 | F161: 890 | G161: 0.9 | H161: 1.42 | I161: 29.08130964 | J161: 215987 | K161: [8] SOUTH CENTRAL - NORTHFIELD 2 NNE
A162: 217004 | B162: [9] SOUTHEAST - ROCHESTER INTL AP | C162: MN | D162: OLMSTED | E162: 9 | F162: 1304 | G162: 0.85 | H162: 1.44 | I162: 29.50826891 | J162: 217004 | K162: [9] SOUTHEAST - ROCHESTER INTL AP
A163: 221743 | B163: [1] UPPER DELTA - CLEVELAND 3 N | C163: MS | D163: BOLIVAR | E163: 1 | F163: 140 | G163: 1.4 | H163: 2.3 | I163: 50.42379106 | J163: 221743 | K163: [1] UPPER DELTA - CLEVELAND 3 N
A164: 227815 | B164: [2] NORTH CENTRAL - SARDIS DAM | C164: MS | D164: PANOLA | E164: 2 | F164: 303 | G164: 1.32 | H164: 2.16 | I164: 53.86293566 | J164: 227815 | K164: [2] NORTH CENTRAL - SARDIS DAM
A165: 229003 | B165: [3] NORTHEAST - TUPELO RGNL AP | C165: MS | D165: LEE | E165: 3 | F165: 361 | G165: 1.3 | H165: 2.13 | I165: 54.41947925 | J165: 229003 | K165: [3] NORTHEAST - TUPELO RGNL AP
A166: 228445 | B166: [4] LOWER DELTA - STONEVILLE EXP STN | C166: MS | D166: WASHINGTON | E166: 4 | F166: 127 | G166: 1.4 | H166: 2.1 | I166: 50.03827932 | J166: 228445 | K166: [4] LOWER DELTA - STONEVILLE EXP STN
A167: 225062 | B167: [5] CENTRAL - LEXINGTON | C167: MS | D167: HOLMES | E167: 5 | F167: 285 | G167: 1.4 | H167: 2.23 | I167: 54.05059082 | J167: 225062 | K167: [5] CENTRAL - LEXINGTON
A168: 228374 | B168: [6] EAST CENTRAL - STATE UNIV | C168: MS | D168: OKTIBBEHA | E168: 6 | F168: 185 | G168: 1.3 | H168: 2.11 | I168: 51.8372154 | J168: 228374 | K168: [6] EAST CENTRAL - STATE UNIV
A169: 227714 | B169: [7] SOUTHWEST - RUTH 1 SE | C169: MS | D169: LINCOLN | E169: 7 | F169: 443 | G169: 1.43 | H169: 2.35 | I169: 56.35407665 | J169: 227714 | K169: [7] SOUTHWEST - RUTH 1 SE
A170: 227220 | B170: [8] SOUTH CENTRAL - PURVIS 2N | C170: MS | D170: LAMAR | E170: 8 | F170: 378 | G170: 1.4 | H170: 2.3 | I170: 59.83281391 | J170: 227220 | K170: [8] SOUTH CENTRAL - PURVIS 2N
A171: 225776 | B171: [9] SOUTHEAST - MERIDIAN AP | C171: MS | D171: LAUDERDALE | E171: 9 | F171: 294 | G171: 1.3 | H171: 2.12 | I171: 55.17079059 | J171: 225776 | K171: [9] SOUTHEAST - MERIDIAN AP
A172: 227840 | B172: [10] COASTAL - SAUCIER EXP FOREST | C172: MS | D172: HARRISON | E172: 10 | F172: 229 | G172: 1.5 | H172: 2.5 | I172: 66.87587204 | J172: 227840 | K172: [10] COASTAL - SAUCIER EXP FOREST
A173: 234358 | B173: [1] NORTHWEST PRAIRIE - KANSAS CITY INTL AP | C173: MO | D173: PLATTE | E173: 1 | F173: 1005 | G173: 1.01 | H173: 1.76 | I173: 37.20754327 | J173: 234358 | K173: [1] NORTHWEST PRAIRIE - KANSAS CITY INTL AP
A174: 237455 | B174: [2] NORTHEAST PRAIRIE - ST LOUIS LAMBERT AP | C174: MO | D174: ST. LOUIS | E174: 2 | F174: 531 | G174: 0.96 | H174: 1.57 | I174: 37.23330015 | J174: 237455 | K174: [2] NORTHEAST PRAIRIE - ST LOUIS LAMBERT AP
A175: 235987 | B175: [3] WEST CENTRAL PLAINS - NEVADA WTP | C175: MO | D175: VERNON | E175: 3 | F175: 820 | G175: 1.2 | H175: 1.9 | I175: 39.32503122 | J175: 235987 | K175: [3] WEST CENTRAL PLAINS - NEVADA WTP
A176: 237976 | B176: [4] WEST OZARKS - SPRINGFIELD WSO AP | C176: MO | D176: GREENE | E176: 4 | F176: 1259 | G176: 1.1 | H176: 1.78 | I176: 42.0144393 | J176: 237976 | K176: [4] WEST OZARKS - SPRINGFIELD WSO AP
A177: 238620 | B177: [5] EAST OZARKS - VIENNA 2 WNW | C177: MO | D177: MARIES | E177: 5 | F177: 770 | G177: 1.11 | H177: 1.74 | I177: 41.33414619 | J177: 238620 | K177: [5] EAST OZARKS - VIENNA 2 WNW
A178: 233999 | B178: [6] BOOTHEEL - HORNERSVILLE | C178: MO | D178: DUNKLIN | E178: 6 | F178: 250 | G178: 1.25 | H178: 2.07 | I178: 46.36292707 | J178: 233999 | K178: [6] BOOTHEEL - HORNERSVILLE
A179: 245745 | B179: [1] WESTERN - MISSOULA INTL AP | C179: MT | D179: MISSOULA | E179: 1 | F179: 3192 | G179: 0.41 | H179: 0.64 | I179: 13.19382766 | J179: 245745 | K179: [1] WESTERN - MISSOULA INTL AP
A180: 241309 | B180: [2] SOUTHWESTERN - BUTTE 8 S | C180: MT | D180: SILVER BOW | E180: 2 | F180: 5700 | G180: 0.5 | H180: 0.8 | I180: 14.84655695 | J180: 241309 | K180: [2] SOUTHWESTERN - BUTTE 8 S
A181: 241737 | B181: [3] NORTH CENTRAL - CHOTEAU | C181: MT | D181: TETON | E181: 3 | F181: 3845 | G181: 0.63 | H181: 1 | I181: 10.55889766 | J181: 241737 | K181: [3] NORTH CENTRAL - CHOTEAU
A182: 240807 | B182: [5] SOUTH CENTRAL - BILLINGS INTL AP | C182: MT | D182: YELLOWSTONE | E182: 5 | F182: 3581 | G182: 0.51 | H182: 0.85 | I182: 13.67074874 | J182: 240807 | K182: [5] SOUTH CENTRAL - BILLINGS INTL AP
A183: 241088 | B183: [6] NORTHEASTERN - BREDETTE | C183: MT | D183: ROOSEVELT | E183: 6 | F183: 2638 | G183: 0.65 | H183: 1.02 | I183: 12.26334696 | J183: 241088 | K183: [6] NORTHEASTERN - BREDETTE
A184: 248169 | B184: [7] SOUTHEASTERN - TERRY 21 NNW | C184: MT | D184: PRAIRIE | E184: 7 | F184: 3142 | G184: 0.63 | H184: 1.06 | I184: 13.87486691 | J184: 248169 | K184: [7] SOUTHEASTERN - TERRY 21 NNW
A185: 257665 | B185: [1] PANHANDLE - SCOTTSBLUFF AP | C185: NE | D185: SCOTTS BLUFF | E185: 1 | F185: 3945 | G185: 0.61 | H185: 0.99 | I185: 14.56736408 | J185: 257665 | K185: [1] PANHANDLE - SCOTTSBLUFF AP
A186: 258760 | B186: [2] NORTH CENTRAL - VALENTINE MILLER AP | C186: NE | D186: CHERRY | E186: 2 | F186: 2590 | G186: 0.73 | H186: 1.22 | I186: 18.33720188 | J186: 258760 | K186: [2] NORTH CENTRAL - VALENTINE MILLER AP
A187: 255995 | B187: [3] NORTHEAST - NORFOLK AP | C187: NE | D187: MADISON | E187: 3 | F187: 1551 | G187: 0.88 | H187: 1.48 | I187: 24.81776288 | J187: 255995 | K187: [3] NORTHEAST - NORFOLK AP
A188: 253395 | B188: [5] CENTRAL - GRAND ISLAND CTR NE AP | C188: NE | D188: HALL | E188: 5 | F188: 1840 | G188: 0.88 | H188: 1.45 | I188: 23.87603585 | J188: 253395 | K188: [5] CENTRAL - GRAND ISLAND CTR NE AP
A189: 254795 | B189: [6] EAST CENTRAL - LINCOLN AP | C189: NE | D189: LANCASTER | E189: 6 | F189: 1190 | G189: 0.94 | H189: 1.55 | I189: 17.80231373 | J189: 254795 | K189: [6] EAST CENTRAL - LINCOLN AP
A190: 256065 | B190: [7] SOUTHWEST - NORTH PLATTE RGNL AP | C190: NE | D190: LINCOLN | E190: 7 | F190: 2778 | G190: 0.81 | H190: 1.25 | I190: 19.38333762 | J190: 256065 | K190: [7] SOUTHWEST - NORTH PLATTE RGNL AP
A191: 252560 | B191: [8] SOUTH CENTRAL - EDISON | C191: NE | D191: FURNAS | E191: 8 | F191: 2120 | G191: 0.9 | H191: 1.41 | I191: 21.21189896 | J191: 252560 | K191: [8] SOUTH CENTRAL - EDISON
A192: 258395 | B192: [9] SOUTHEAST - SYRACUSE | C192: NE | D192: OTOE | E192: 9 | F192: 1100 | G192: 1 | H192: 1.7 | I192: 29.95078781 | J192: 258395 | K192: [9] SOUTHEAST - SYRACUSE
A193: 269171 | B193: [1] NORTHWESTERN - WINNEMUCCA AP | C193: NV | D193: HUMBOLDT | E193: 1 | F193: 4296 | G193: 0.39 | H193: 0.58 | I193: 7.948998069 | J193: 269171 | K193: [1] NORTHWESTERN - WINNEMUCCA AP
A194: 262631 | B194: [2] NORTHEASTERN - ELY AIRPORT | C194: NV | D194: WHITE PINE | E194: 2 | F194: 6262 | G194: 0.44 | H194: 0.63 | I194: 9.088861395 | J194: 262631 | K194: [2] NORTHEASTERN - ELY AIRPORT
A195: 268170 | B195: [3] SOUTH CENTRAL - TONOPAH AIRPORT | C195: NV | D195: NYE | E195: 3 | F195: 5395 | G195: 0.42 | H195: 0.63 | I195: 2.272766096 | J195: 268170 | K195: [3] SOUTH CENTRAL - TONOPAH AIRPORT
A196: 264436 | B196: [4] EXTREME SOUTHERN - LAS VEGAS AP | C196: NV | D196: CLARK | E196: 4 | F196: 2131 | G196: 0.58 | H196: 0.88 | I196: 4.195456145 | J196: 264436 | K196: [4] EXTREME SOUTHERN - LAS VEGAS AP
A197: 275639 | B197: [1] NORTHERN - MT WASHINGTON | C197: NH | D197: COOS | E197: 1 | F197: 6267 | G197: 1.02 | H197: 1.77 | I197: 92.17109944 | J197: 275639 | K197: [1] NORTHERN - MT WASHINGTON
A198: 271683 | B198: [2] SOUTHERN - CONCORD ASOS | C198: NH | D198: MERRIMACK | E198: 2 | F198: 346 | G198: 0.85 | H198: 1.33 | I198: 38.06102262 | J198: 271683 | K198: [2] SOUTHERN - CONCORD ASOS
A199: 286026 | B199: [1] NORTHERN - NEWARK INTL AP | C199: NJ | D199: ESSEX | E199: 1 | F199: 7 | G199: 0.99 | H199: 1.61 | I199: 43.98673075 | J199: 286026 | K199: [1] NORTHERN - NEWARK INTL AP
A200: 280311 | B200: [2] SOUTHERN - ATLANTIC CITY INTL AP | C200: NJ | D200: ATLANTIC | E200: 2 | F200: 60 | G200: 1.01 | H200: 1.63 | I200: 41.18544369 | J200: 280311 | K200: [2] SOUTHERN - ATLANTIC CITY INTL AP
... 148 more rows
